{"text_format":"1","workbook":"xlsx","n_sheets":5,"sheets":["How to Use This Tool","Enter Company Names","CSRHub Ratings","SASB Score Overview","SASB Mapping"],"not_rendered":{"charts":0,"images":6,"macros":1,"external_links":0,"defined_names":36,"comments":2,"pivot_tables":0},"unopened":[],"bounds":{"document_bytes":16777216,"sheet_cells":100000,"rows_first":2000,"rows_last":500,"rows_between":2000,"halvings":0,"cell_chars":16384,"cell_head_chars":4096},"cells_cut":0,"cells_raw":0,"read":"whole","date_system":"1900"}

{"sheet":"How to Use This Tool","index":0,"n_rows":59,"n_cols":14,"rows_kept":59,"cut":false,"hidden":false,"merged":[[13,0,13,5],[14,0,14,6],[7,0,7,1],[8,0,9,6],[5,8,5,9],[7,8,7,14],[52,0,56,6],[44,0,46,6],[34,0,41,6],[33,0,33,6],[24,0,24,6],[29,0,29,6],[43,0,43,1],[28,0,28,2],[5,0,5,6],[18,0,18,3],[19,0,19,6],[23,0,23,3]]}
[]
[]
[]
[]
[]
["How to Use the CSRHub SASB Calculator - Auto Industry",null,null,null,null,null,null,null,"SASB for Auto Industry Materiality Threshold Control"]
[null,null,null,null,null,null,null,null,"Customize your SASB Materiality Level",0.83]
["Background",null,null,null,null,null,null,null,"SASB Compliance Results for Auto Industry"]
["SASB (The Sustainability Accounting Standards Board), founded in 2011, created a framework for disclosing financially material ESG factors specific to 77 industries. Its standards help companies report sustainability issues that directly affect financial performance. In 2021, SASB merged into the ISSB to support a global baseline for sustainability reporting. ",null,null,null,null,null,null,null,"Company Name","Materials Efficiency & Recycling ","Product Safety","Labor Practices (Labor Relations)","Fuel Economy and Use-phase Emissions","Materials Sourcing (including critical materials)"]
[null,null,null,null,null,null,null,null,{"$f":"'SASB Score Overview'!A15","v":"Tesla Motors, Inc."},{"$f":"'SASB Score Overview'!C15","v":49.656999999999996},{"$f":"'SASB Score Overview'!D15","v":48.621999999999993},{"$f":"'SASB Score Overview'!E15","v":45.0184},{"$f":"'SASB Score Overview'!F15","v":50.12},{"$f":"'SASB Score Overview'!G15","v":49.145499999999998}]
[null,null,null,null,null,null,null,null,"Comparator Average",{"$f":"'SASB Score Overview'!C10","v":60.526649999999997},{"$f":"'SASB Score Overview'!D10","v":57.391200000000005},{"$f":"'SASB Score Overview'!E10","v":56.903749999999988},{"$f":"'SASB Score Overview'!F10","v":59.197350000000007},{"$f":"'SASB Score Overview'!G10","v":59.207950000000004}]
[null,null,null,null,null,null,null,null,"Materiality Test",{"$f":"IF(J10<J11*$J$7,\"Below\",\"Pass\")","v":"Below"},{"$f":"IF(K10<K11*$J$7,\"Below\",\"Pass\")","v":"Pass"},"Below","Pass","Pass"]
[]
["5 Dimensions Across Industries Have Been Mapped to ESG Topics"]
["SASB identified five broad dimensions across 77 industries, then selected the most relevant topcs within the dimensions to ensure disclosures focus on material risks and opportunities. We have mapped the relevant 10 metrics for the Automobile Standard across the 5 different disclosure topics to the 12 sustainability-related topics that CSRHub rates. The mapping for Auto industry is shown on the SASB Mapping tab."]
[]
[]
[]
["The Enter Company Names Tab"]
["This tab is the starting point. It allows you search the names of the companies you wish to evaluate. Please enter in the date of data you are wanting to evaluate. You can verify the company name in column J. The instructions for matching the correct entity can be found in cells A4-A10."]
[]
[]
[]
["The SASB Score Overview Tab"]
["This tab contains an estimate of the relative performance for the studied companies across the 5 broad areas and topics specific to the Auto industry. The \"focus company\" is the top and the \"comparators\" are below it. The average, best, and worst ratings numbers at the top of the sheet reference the comparators. The focus company is excluded."]
[]
[]
[]
["The CSRHub Ratings Tab"]
["Confirm the date is correct and that it pulled from the Enter Company Names tab when you click \"Calculate.\" The \"focus company\" is the top and the \"comparators\" are below it. The comparators average, best and worst ratings are listed at the top of the sheet. The focus company is excluded"]
[]
[]
[null,null,null,". "]
["Set Your Threshold for Materiality and Use the Tool"]
["To the right at the top of this page is a cell to \"Customize your SASB Materiality Level\" for this tool. If you want to test if the focus company is in line with the average for its comparators, set the threshold at 100%. If you would accept the focus company being a certain percent below the average for SASB in this industry, set the threshold at the desired percentage and click Calculate. To the right of these instructions, you will see a group of comparisons between the focus company and the average of the comparators. When the focus company fails to meet the threshold you set, you will see a flag that says \"Below.\" When it meets the threshold, the flag will say \"Pass.\""]
[]
[]
[]
[]
[]
[]
[]
[]
["What to Do, Next?"]
["When the focus company appears likely to fail the materiality test for a particular SASB area, it should consider taking steps to rectify this issue.\nThese steps could include:"]
[]
[]
["1. Improve policies and practices in the area of concern.\n"]
["2. Gather more data to allow better understanding of performance in this area."]
["3. Improve reporting to raings groups and share relevant indicators."]
[]
[]
["CSRHub's ratings are based on the views of hundreds of ratings groups. These groups typically rely on both formal and informal reporting from the entities they cover plus their own internal analysis techniques and models. If necessary, CSRHub can supply additional reports and tools to help improve reporting and strength an entity's engagement with rating sources."]
[]
[]
[]
[]
[]
["For more information on CSRHub’s methodology, please see www.csrhub.com/csrhub-esg-ratings-methodology."]

{"sheet":"Enter Company Names","index":1,"n_rows":25,"n_cols":24,"rows_kept":25,"cut":false,"hidden":false,"merged":[[0,17,0,23],[2,13,3,15],[2,17,4,18],[5,17,5,23],[12,0,12,1],[12,10,12,15]]}
[null,null,null,null,null,null,null,null,null,null,null,null,null,null,null,null,null,"Controls for Fine Tuning Scope of Search"]
[null,null,null,null,null,null,null,null,null,null,null,null,null,null,null,null,null,null,null,null,"Name","Ticker","URL","ISIN"]
["Enter The Company Or Companies You Want To Study",null,null,null,null,null,null,null,null,null,null,null,null,"NA = Rating or information not available. This can also be due to a company with only partial ratings. We do not provide an overall score for partially rated companies.",null,null,null,"Set to include (I) or exclude (X) fully rated, partially rated and/or unrated companies from your search",null,"Fully Rated","I","I","I","I"]
["1. Enter a company name, part of a company name, or a brand in column B, a ticker into column C, a web URL into column D, and/or an ISIN number into column E.",null,null,null,null,null,null,null,null,null,null,null,null,null,null,null,null,null,null,"Partially Rated","I","I","I","I"]
["2. If the CSRHub name you want does not appear in column J, use the CSRHub name lookup tool (top menu, CSRHub…Company) to paste the right text company name into column J.",null,null,null,null,null,null,null,null,null,null,null,null,null,null,null,null,null,null,"Not Rated","I","I","I","I"]
["3. The data in columns K to Q should help you double check that you have the right name match. The name in column J is the one used automatically on other sheets.",null,null,null,null,null,null,null,null,null,null,null,null,null,"Version:",{"$f":"CSRHubAPIVersionNumber()","v":"3.3"},null,"Changes in the settings above will change the search parameter in cells F13-I13"]
["4. If you need to lookup more than 30 companies, you can copy the formulas in row 44 down as far as you wish.",null,null,null,null,null,null,null,null,null,null,null,null,null,"Last Content Update:","2026-03-26"]
["5. Use column A to store your internal identifier or version of the company name for later reference. You can change the scope of search using the box starting in column R.",null,null,null,null,null,null,null,null,null,null,null,null,null,"Last Code Update:",{"$f":"CSRHubAPIVersionDate()","v":"2025-12-25"},null,null,"Month","Year"]
["6. Request a specific Month and Year of data, in cells S9 and T9.  Choose Formulas from the top menu, then Calculate Sheet. This will allow our database to update the sheet.",null,null,null,null,null,null,null,null,null,null,null,null,null,"Includes MonetDB Mac Update",null,null,"Data Date","February",2026]
["7. Enter your CSRHub site credentials (username/password) when directed."]
[]
[]
["Top Line Summary",null,{"$f":"COUNT(N15:N500) & \" Companies\"","v":"11 Companies"},null,"Search scope parameters (see Column P)",{"$f":"IF(AND(U3=\"I\",U4=\"I\",U5=\"I\"),\"0\",IF(AND(U3=\"I\",U4=\"X\",U5=\"X\"),\"1\",IF(AND(U3=\"I\",U4=\"I\",U5=\"X\"),\"2\",IF(AND(U3=\"X\",U4=\"I\",U5=\"X\"),\"3\",IF(AND(U3=\"X\",U4=\"X\",U5=\"I\"),\"4\",IF(AND(U3=\"X\",U4=\"I\",U5=\"I\"),\"5\",IF(AND(U3=\"I\",U4=\"X\",U5=\"I\"),\"6\",\"0\")))))))","v":"0"},{"$f":"IF(AND(V3=\"I\",V4=\"I\",V5=\"I\"),\"0\",IF(AND(V3=\"I\",V4=\"X\",V5=\"X\"),\"1\",IF(AND(V3=\"I\",V4=\"I\",V5=\"X\"),\"2\",IF(AND(V3=\"X\",V4=\"I\",V5=\"X\"),\"3\",IF(AND(V3=\"X\",V4=\"X\",V5=\"I\"),\"4\",IF(AND(V3=\"X\",V4=\"I\",V5=\"I\"),\"5\",IF(AND(V3=\"I\",V4=\"X\",V5=\"I\"),\"6\",\"0\")))))))","v":"0"},"0","0","More instructions and examples are available online.","Ways to Double Check the Name"]
["Internal ID (Optional)","Enter Name","Enter Ticker (No exchange code)","Enter web URL","Enter ISIN","Simple Lookup (NA or blank = didn't work)","Ticker Lookup (NA or blank = didn't work)","URL Lookup (NA or blank = didn't work)","ISIN Lookup (NA or blank = didn't work)","Best Guess (replace using name lookup tool when NA)","Country","City","Ticker","# of Sources","ISIN","Industry","Overall Ratings"]
[null,"Tesla Motors, Inc.",null,null,null,{"$f":"csrhubfindcompanyname($B15,0,F$13)","v":"Tesla Motors, Inc."},{"$f":"csrhubfindcompanyname($C15,3,G$13)","v":"NA"},{"$f":"csrhubfindcompanyname($D15,5,H$13)","v":"NA"},{"$f":"csrhubfindcompanyname($E15,4,I$13)","v":"NA"},{"$f":"IF(I15=\"NA\",IF(H15=\"NA\",IF(F15=\"NA\",IF(G15= \"NA\",\"NA\",G15),F15),H15),I15)","v":"Tesla Motors, Inc."},{"$f":"csrhubcompanycountry(J15)","v":"USA"},{"$f":"CSRHubCompanycity(J15)","v":"Palo Alto"},{"$f":"CSRHubCompanyTicker(J15)","v":"TSLA"},{"$f":"CSRHubDScount(J15)","v":66},{"$f":"csrhubcompanyisin(J15)","v":"US88160R1014"},{"$f":"CSRHubCompanyIndustry(J15)","v":"Motor Vehicle Manufacturing"},{"$f":"CSRHubRating(J15)","v":47.500100000000003}]
[null,"Audi AG",null,null,null,{"$f":"csrhubfindcompanyname($B16,0,F$13)","v":"Audi AG"},"NA","NA","NA","Audi AG",{"$f":"csrhubcompanycountry(J16)","v":"Germany"},{"$f":"CSRHubCompanycity(J16)","v":"Ingolstadt"},{"$f":"CSRHubCompanyTicker(J16)","v":"NSU"},{"$f":"CSRHubDScount(J16)","v":11},{"$f":"csrhubcompanyisin(J16)","v":"DE0006757008"},{"$f":"CSRHubCompanyIndustry(J16)","v":"Motor Vehicle Manufacturing"},{"$f":"CSRHubRating(J16)","v":61.2742}]
[null,"BMW",null,null,null,"BMW","NA","NA","NA","BMW",{"$f":"csrhubcompanycountry(J17)","v":"Germany"},"Munich","BMW",57,"DE0005190003","Motor Vehicle Manufacturing",59.604399999999998]
[null,"Ford Motor Company",null,null,null,"Ford Motor Company","NA","NA","NA","Ford Motor Company","USA","Dearborn","F",75,"US3453708600","Motor Vehicle Manufacturing",60.091900000000003]
[null,"HONDA MOTOR CO.,LTD.",null,null,null,"HONDA MOTOR CO.,LTD.","NA","NA","NA","HONDA MOTOR CO.,LTD.","Japan","Minato-ku","7267",57,"JP3854600008","Motor Vehicle Manufacturing",60.993400000000001]
[null,"General Motors Corporation (GM)",null,null,null,"General Motors Corporation (GM)","NA","NA","NA","General Motors Corporation (GM)","USA","Detroit","GM",89,"US37045V1008","Motor Vehicle Manufacturing",62.461199999999998]
[null,"Hyundai Motor Co.",null,null,null,"Hyundai Motor Co.","NA",{"$f":"csrhubfindcompanyname($D21,5,H$13)","v":"NA"},"NA",{"$f":"IF(I21=\"NA\",IF(H21=\"NA\",IF(F21=\"NA\",IF(G21= \"NA\",\"NA\",G21),F21),H21),I21)","v":"Hyundai Motor Co."},"South Korea","Seoul","5380",51,"KR7005380001","Motor Vehicle Manufacturing",60.001899999999999]
[null,"Porsche AG",null,null,null,"Porsche AG","NA",{"$f":"csrhubfindcompanyname($D22,5,H$13)","v":"NA"},"NA",{"$f":"IF(I22=\"NA\",IF(H22=\"NA\",IF(F22=\"NA\",IF(G22= \"NA\",\"NA\",G22),F22),H22),I22)","v":"Porsche AG"},"Germany","Stuttgart","DRPRY",25,"DE000PAG9113","Motor Vehicle Manufacturing",54.002699999999997]
[null,"Volkswagen AG",null,null,null,"Volkswagen AG","NA","NA","NA","Volkswagen AG","Germany","Wolfsburg","VOW3",58,"DE0007664039","Motor Vehicle Manufacturing",58.445999999999998]
[null,"SUBARU CORPORATION",null,null,null,"SUBARU CORPORATION","NA","NA","NA","SUBARU CORPORATION","Japan","Shinjuku-ku","7270",34,"JP3814800003","Motor Vehicle Manufacturing",60.996899999999997]
[null,"TOYOTA MOTOR CORPORATION",null,null,null,"TOYOTA MOTOR CORPORATION","NA","NA","NA","TOYOTA MOTOR CORPORATION","Japan","Toyota-shi","7203",69,"JP3633400001","Motor Vehicle Manufacturing",61.484200000000001]

{"sheet":"CSRHub Ratings","index":2,"n_rows":500,"n_cols":14,"rows_kept":500,"cut":false,"hidden":false,"merged":[[8,11,8,13],[12,0,12,1],[9,0,11,0],[8,2,8,4],[8,5,8,7]]}
[]
[]
[]
["Subcategory Ratings (0-100, 100 = best)"]
["Instructions for CSRHub SASB Calculator (Continued)"]
["1. The company names will pull from the Enter Company Names tab. Verify date is correct when you click Calculate."]
["2. Clear out any old ratings numbers (cell C15-N15 and down). When prompted, click \"No\" to not delete query."]
["3. Go to the CSRHub menu (in the green bar up top) and click on the \"Rebuild Data on This Sheet\" button. Your sheet will refresh. Then click Calculate."]
[null,null,"Community","","","Employees","","","Environment","","","Goverment","",""]
["Excludes focus company","Average Rating",{"$f":"AVERAGEIF(C16:C212,\"<>NA\")","v":57.686},{"$f":"AVERAGEIF(D16:D212,\"<>NA\")","v":59.850999999999999},57.375,57.268000000000008,57.698,55.863999999999997,58.205999999999996,61.655999999999992,62.056000000000004,56.685999999999993,55.498000000000005,57.551000000000002]
[null,"Best Rating",{"$f":"MAX(C16:C212)","v":60.27},{"$f":"MAX(D16:D212)","v":63.48},76.03,73.98,76.91,72.94,61.94,65.34,67.52,78.98,64.87,78.11]
[null,"Worst Rating",{"$f":"MIN(C16:C212)","v":54.1},{"$f":"MIN(D16:D212)","v":52.2},51.7,50.2,51.87,50.16,49.6,51.92,51.2,48.72,50.55,50.7]
["<==DATA PULLS FROM FIRST TAB==>"]
["Internal ID","COMPANY NAME ",{"$f":"\"Community Dev & Philanthropy Rating (\" & 'Enter Company Names'!$S$9 & \" \" & 'Enter Company Names'!$T$9 & \")\"","v":"Community Dev & Philanthropy Rating (February 2026)"},{"$f":"\"Human Rights & Supply Chain Rating (\" & 'Enter Company Names'!$S$9 & \" \" & 'Enter Company Names'!$T$9 & \")\"","v":"Human Rights & Supply Chain Rating (February 2026)"},{"$f":"\"Product Rating (\" & 'Enter Company Names'!$S$9 & \" \" & 'Enter Company Names'!$T$9 & \")\"","v":"Product Rating (February 2026)"},{"$f":"\"Compensation & Benefits Rating (\" & 'Enter Company Names'!$S$9 & \" \" & 'Enter Company Names'!$T$9 & \")\"","v":"Compensation & Benefits Rating (February 2026)"},{"$f":"\"Diversity & Labor Rights Rating (\" & 'Enter Company Names'!$S$9 & \" \" & 'Enter Company Names'!$T$9 & \")\"","v":"Diversity & Labor Rights Rating (February 2026)"},{"$f":"\"Training, Health & Safety Rating (\" & 'Enter Company Names'!$S$9 & \" \" & 'Enter Company Names'!$T$9 & \")\"","v":"Training, Health & Safety Rating (February 2026)"},{"$f":"\"Energy & Climate Change Rating (\" & 'Enter Company Names'!$S$9 & \" \" & 'Enter Company Names'!$T$9 & \")\"","v":"Energy & Climate Change Rating (February 2026)"},{"$f":"\"Environment Policy & Reporting Rating (\" & 'Enter Company Names'!$S$9 & \" \" & 'Enter Company Names'!$T$9 & \")\"","v":"Environment Policy & Reporting Rating (February 2026)"},{"$f":"\"Resource Management Rating (\" & 'Enter Company Names'!$S$9 & \" \" & 'Enter Company Names'!$T$9 & \")\"","v":"Resource Management Rating (February 2026)"},{"$f":"\"Board Rating (\" & 'Enter Company Names'!$S$9 & \" \" & 'Enter Company Names'!$T$9 & \")\"","v":"Board Rating (February 2026)"},{"$f":"\"Leadership Ethics Rating (\" & 'Enter Company Names'!$S$9 & \" \" & 'Enter Company Names'!$T$9 & \")\"","v":"Leadership Ethics Rating (February 2026)"},{"$f":"\"Transparency & Reporting Rating (\" & 'Enter Company Names'!$S$9 & \" \" & 'Enter Company Names'!$T$9 & \")\"","v":"Transparency & Reporting Rating (February 2026)"}]
[null,{"$f":"IF(AND('Enter Company Names'!J15<>0,'Enter Company Names'!J15<>\"NA\"),'Enter Company Names'!J15,\"\")","v":"Tesla Motors, Inc."},50.2,50.32,49.22,45.02,43.6,45.94,54.12,47.74,50.56,45.15,48.3,45.76]
[null,{"$f":"IF(AND('Enter Company Names'!J16<>0,'Enter Company Names'!J16<>\"NA\"),'Enter Company Names'!J16,\"\")","v":"Audi AG"},57.81,52.2,76.03,73.98,76.91,72.94,51.5,61.72,52.37,78.98,64.87,78.11]
[null,{"$f":"IF(AND('Enter Company Names'!J17<>0,'Enter Company Names'!J17<>\"NA\"),'Enter Company Names'!J17,\"\")","v":"BMW"},57.71,61.62,55.98,56.56,56.06,53.38,61.83,63.35,64.900000000000006,51.36,53.03,53.67]
[null,{"$f":"IF(AND('Enter Company Names'!J18<>0,'Enter Company Names'!J18<>\"NA\"),'Enter Company Names'!J18,\"\")","v":"Ford Motor Company"},58.01,62.74,53.77,55.15,55.97,52.3,61.94,65.34,66.12,57.11,55.81,57.96]
[null,{"$f":"IF(AND('Enter Company Names'!J19<>0,'Enter Company Names'!J19<>\"NA\"),'Enter Company Names'!J19,\"\")","v":"HONDA MOTOR CO.,LTD."},58.81,63.48,56.95,58.49,56.94,55.22,60.95,64.06,67.52,57.05,57.14,57.1]
[null,{"$f":"IF(AND('Enter Company Names'!J20<>0,'Enter Company Names'!J20<>\"NA\"),'Enter Company Names'!J20,\"\")","v":"General Motors Corporation (GM)"},58.83,58.65,54.59,55.97,58.2,55.2,58.15,59.39,61.61,61.62,55.56,58.75]
[null,{"$f":"IF(AND('Enter Company Names'!J21<>0,'Enter Company Names'!J21<>\"NA\"),'Enter Company Names'!J21,\"\")","v":"Hyundai Motor Co."},57.59,62.83,58.61,57.04,58.18,55.94,59.41,64.77,66.63,54.78,53.71,56.59]
[null,{"$f":"IF(AND('Enter Company Names'!J22<>0,'Enter Company Names'!J22<>\"NA\"),'Enter Company Names'!J22,\"\")","v":"Porsche AG"},54.1,56.84,51.7,53.9,51.87,50.16,49.6,51.92,51.2,49.94,51.07,51.91]
[null,{"$f":"IF(AND('Enter Company Names'!J23<>0,'Enter Company Names'!J23<>\"NA\"),'Enter Company Names'!J23,\"\")","v":"Volkswagen AG"},54.6,58.8,56.11,50.2,51.92,50.49,57.61,60.15,62.34,48.72,50.55,50.7]
[null,{"$f":"IF(AND('Enter Company Names'!J24<>0,'Enter Company Names'!J24<>\"NA\"),'Enter Company Names'!J24,\"\")","v":"SUBARU CORPORATION"},59.13,60.16,54.46,56.68,54.85,55.77,59.64,60.71,61.24,54.86,58.35,56.11]
[null,{"$f":"IF(AND('Enter Company Names'!J25<>0,'Enter Company Names'!J25<>\"NA\"),'Enter Company Names'!J25,\"\")","v":"TOYOTA MOTOR CORPORATION"},60.27,61.19,55.55,54.71,56.08,57.24,61.43,65.150000000000006,66.63,52.44,54.89,54.61]
[{"$f":"IF(AND('Enter Company Names'!J26<>0,'Enter Company Names'!J26<>\"NA\"),'Enter Company Names'!J26,\"\")","v":""}]
[{"$f":"IF(AND('Enter Company Names'!J27<>0,'Enter Company Names'!J27<>\"NA\"),'Enter Company Names'!J27,\"\")","v":""}]
[{"$f":"IF(AND('Enter Company Names'!J28<>0,'Enter Company Names'!J28<>\"NA\"),'Enter Company Names'!J28,\"\")","v":""}]
[{"$f":"IF(AND('Enter Company Names'!J29<>0,'Enter Company Names'!J29<>\"NA\"),'Enter Company Names'!J29,\"\")","v":""}]
[{"$f":"IF(AND('Enter Company Names'!J30<>0,'Enter Company Names'!J30<>\"NA\"),'Enter Company Names'!J30,\"\")","v":""}]
[{"$f":"IF(AND('Enter Company Names'!J31<>0,'Enter Company Names'!J31<>\"NA\"),'Enter Company Names'!J31,\"\")","v":""}]
[{"$f":"IF(AND('Enter Company Names'!J32<>0,'Enter Company Names'!J32<>\"NA\"),'Enter Company Names'!J32,\"\")","v":""}]
[{"$f":"IF(AND('Enter Company Names'!J33<>0,'Enter Company Names'!J33<>\"NA\"),'Enter Company Names'!J33,\"\")","v":""}]
[{"$f":"IF(AND('Enter Company Names'!J34<>0,'Enter Company Names'!J34<>\"NA\"),'Enter Company Names'!J34,\"\")","v":""}]
[{"$f":"IF(AND('Enter Company Names'!J35<>0,'Enter Company Names'!J35<>\"NA\"),'Enter Company Names'!J35,\"\")","v":""}]
[{"$f":"IF(AND('Enter Company Names'!J36<>0,'Enter Company Names'!J36<>\"NA\"),'Enter Company Names'!J36,\"\")","v":""}]
[{"$f":"IF(AND('Enter Company Names'!J37<>0,'Enter Company Names'!J37<>\"NA\"),'Enter Company Names'!J37,\"\")","v":""}]
[{"$f":"IF(AND('Enter Company Names'!J38<>0,'Enter Company Names'!J38<>\"NA\"),'Enter Company Names'!J38,\"\")","v":""}]
[{"$f":"IF(AND('Enter Company Names'!J39<>0,'Enter Company Names'!J39<>\"NA\"),'Enter Company Names'!J39,\"\")","v":""}]
[{"$f":"IF(AND('Enter Company Names'!J40<>0,'Enter Company Names'!J40<>\"NA\"),'Enter Company Names'!J40,\"\")","v":""}]
[{"$f":"IF(AND('Enter Company Names'!J41<>0,'Enter Company Names'!J41<>\"NA\"),'Enter Company Names'!J41,\"\")","v":""}]
[{"$f":"IF(AND('Enter Company Names'!J42<>0,'Enter Company Names'!J42<>\"NA\"),'Enter Company Names'!J42,\"\")","v":""}]
[{"$f":"IF(AND('Enter Company Names'!J43<>0,'Enter Company Names'!J43<>\"NA\"),'Enter Company Names'!J43,\"\")","v":""}]
[{"$f":"IF(AND('Enter Company Names'!J44<>0,'Enter Company Names'!J44<>\"NA\"),'Enter Company Names'!J44,\"\")","v":""}]
[{"$f":"IF(AND('Enter Company Names'!J45<>0,'Enter Company Names'!J45<>\"NA\"),'Enter Company Names'!J45,\"\")","v":""}]
[{"$f":"IF(AND('Enter Company Names'!J46<>0,'Enter Company Names'!J46<>\"NA\"),'Enter Company Names'!J46,\"\")","v":""}]
[{"$f":"IF(AND('Enter Company Names'!J47<>0,'Enter Company Names'!J47<>\"NA\"),'Enter Company Names'!J47,\"\")","v":""}]
[{"$f":"IF(AND('Enter Company Names'!J48<>0,'Enter Company Names'!J48<>\"NA\"),'Enter Company Names'!J48,\"\")","v":""}]
[{"$f":"IF(AND('Enter Company Names'!J49<>0,'Enter Company Names'!J49<>\"NA\"),'Enter Company Names'!J49,\"\")","v":""}]
[{"$f":"IF(AND('Enter Company Names'!J50<>0,'Enter Company Names'!J50<>\"NA\"),'Enter Company Names'!J50,\"\")","v":""}]
[{"$f":"IF(AND('Enter Company Names'!J51<>0,'Enter Company Names'!J51<>\"NA\"),'Enter Company Names'!J51,\"\")","v":""}]
[{"$f":"IF(AND('Enter Company Names'!J52<>0,'Enter Company Names'!J52<>\"NA\"),'Enter Company Names'!J52,\"\")","v":""}]
[{"$f":"IF(AND('Enter Company Names'!J53<>0,'Enter Company Names'!J53<>\"NA\"),'Enter Company Names'!J53,\"\")","v":""}]
[{"$f":"IF(AND('Enter Company Names'!J54<>0,'Enter Company Names'!J54<>\"NA\"),'Enter Company Names'!J54,\"\")","v":""}]
[{"$f":"IF(AND('Enter Company Names'!J55<>0,'Enter Company Names'!J55<>\"NA\"),'Enter Company Names'!J55,\"\")","v":""}]
[{"$f":"IF(AND('Enter Company Names'!J56<>0,'Enter Company Names'!J56<>\"NA\"),'Enter Company Names'!J56,\"\")","v":""}]
[{"$f":"IF(AND('Enter Company Names'!J57<>0,'Enter Company Names'!J57<>\"NA\"),'Enter Company Names'!J57,\"\")","v":""}]
[{"$f":"IF(AND('Enter Company Names'!J58<>0,'Enter Company Names'!J58<>\"NA\"),'Enter Company Names'!J58,\"\")","v":""}]
[{"$f":"IF(AND('Enter Company Names'!J59<>0,'Enter Company Names'!J59<>\"NA\"),'Enter Company Names'!J59,\"\")","v":""}]
[{"$f":"IF(AND('Enter Company Names'!J60<>0,'Enter Company Names'!J60<>\"NA\"),'Enter Company Names'!J60,\"\")","v":""}]
[{"$f":"IF(AND('Enter Company Names'!J61<>0,'Enter Company Names'!J61<>\"NA\"),'Enter Company Names'!J61,\"\")","v":""}]
[{"$f":"IF(AND('Enter Company Names'!J62<>0,'Enter Company Names'!J62<>\"NA\"),'Enter Company Names'!J62,\"\")","v":""}]
[{"$f":"IF(AND('Enter Company Names'!J63<>0,'Enter Company Names'!J63<>\"NA\"),'Enter Company Names'!J63,\"\")","v":""}]
[{"$f":"IF(AND('Enter Company Names'!J64<>0,'Enter Company Names'!J64<>\"NA\"),'Enter Company Names'!J64,\"\")","v":""}]
[{"$f":"IF(AND('Enter Company Names'!J65<>0,'Enter Company Names'!J65<>\"NA\"),'Enter Company Names'!J65,\"\")","v":""}]
[{"$f":"IF(AND('Enter Company Names'!J66<>0,'Enter Company Names'!J66<>\"NA\"),'Enter Company Names'!J66,\"\")","v":""}]
[{"$f":"IF(AND('Enter Company Names'!J67<>0,'Enter Company Names'!J67<>\"NA\"),'Enter Company Names'!J67,\"\")","v":""}]
[{"$f":"IF(AND('Enter Company Names'!J68<>0,'Enter Company Names'!J68<>\"NA\"),'Enter Company Names'!J68,\"\")","v":""}]
[{"$f":"IF(AND('Enter Company Names'!J69<>0,'Enter Company Names'!J69<>\"NA\"),'Enter Company Names'!J69,\"\")","v":""}]
[{"$f":"IF(AND('Enter Company Names'!J70<>0,'Enter Company Names'!J70<>\"NA\"),'Enter Company Names'!J70,\"\")","v":""}]
[{"$f":"IF(AND('Enter Company Names'!J71<>0,'Enter Company Names'!J71<>\"NA\"),'Enter Company Names'!J71,\"\")","v":""}]
[{"$f":"IF(AND('Enter Company Names'!J72<>0,'Enter Company Names'!J72<>\"NA\"),'Enter Company Names'!J72,\"\")","v":""}]
[{"$f":"IF(AND('Enter Company Names'!J73<>0,'Enter Company Names'!J73<>\"NA\"),'Enter Company Names'!J73,\"\")","v":""}]
[{"$f":"IF(AND('Enter Company Names'!J74<>0,'Enter Company Names'!J74<>\"NA\"),'Enter Company Names'!J74,\"\")","v":""}]
[{"$f":"IF(AND('Enter Company Names'!J75<>0,'Enter Company Names'!J75<>\"NA\"),'Enter Company Names'!J75,\"\")","v":""}]
[{"$f":"IF(AND('Enter Company Names'!J76<>0,'Enter Company Names'!J76<>\"NA\"),'Enter Company Names'!J76,\"\")","v":""}]
[{"$f":"IF(AND('Enter Company Names'!J77<>0,'Enter Company Names'!J77<>\"NA\"),'Enter Company Names'!J77,\"\")","v":""}]
[{"$f":"IF(AND('Enter Company Names'!J78<>0,'Enter Company Names'!J78<>\"NA\"),'Enter Company Names'!J78,\"\")","v":""}]
[{"$f":"IF(AND('Enter Company Names'!J79<>0,'Enter Company Names'!J79<>\"NA\"),'Enter Company Names'!J79,\"\")","v":""}]
[{"$f":"IF(AND('Enter Company Names'!J80<>0,'Enter Company Names'!J80<>\"NA\"),'Enter Company Names'!J80,\"\")","v":""}]
[{"$f":"IF(AND('Enter Company Names'!J81<>0,'Enter Company Names'!J81<>\"NA\"),'Enter Company Names'!J81,\"\")","v":""}]
[{"$f":"IF(AND('Enter Company Names'!J82<>0,'Enter Company Names'!J82<>\"NA\"),'Enter Company Names'!J82,\"\")","v":""}]
[{"$f":"IF(AND('Enter Company Names'!J83<>0,'Enter Company Names'!J83<>\"NA\"),'Enter Company Names'!J83,\"\")","v":""}]
[{"$f":"IF(AND('Enter Company Names'!J84<>0,'Enter Company Names'!J84<>\"NA\"),'Enter Company Names'!J84,\"\")","v":""}]
[{"$f":"IF(AND('Enter Company Names'!J85<>0,'Enter Company Names'!J85<>\"NA\"),'Enter Company Names'!J85,\"\")","v":""}]
[{"$f":"IF(AND('Enter Company Names'!J86<>0,'Enter Company Names'!J86<>\"NA\"),'Enter Company Names'!J86,\"\")","v":""}]
[{"$f":"IF(AND('Enter Company Names'!J87<>0,'Enter Company Names'!J87<>\"NA\"),'Enter Company Names'!J87,\"\")","v":""}]
[{"$f":"IF(AND('Enter Company Names'!J88<>0,'Enter Company Names'!J88<>\"NA\"),'Enter Company Names'!J88,\"\")","v":""}]
[{"$f":"IF(AND('Enter Company Names'!J89<>0,'Enter Company Names'!J89<>\"NA\"),'Enter Company Names'!J89,\"\")","v":""}]
[{"$f":"IF(AND('Enter Company Names'!J90<>0,'Enter Company Names'!J90<>\"NA\"),'Enter Company Names'!J90,\"\")","v":""}]
[{"$f":"IF(AND('Enter Company Names'!J91<>0,'Enter Company Names'!J91<>\"NA\"),'Enter Company Names'!J91,\"\")","v":""}]
[{"$f":"IF(AND('Enter Company Names'!J92<>0,'Enter Company Names'!J92<>\"NA\"),'Enter Company Names'!J92,\"\")","v":""}]
[{"$f":"IF(AND('Enter Company Names'!J93<>0,'Enter Company Names'!J93<>\"NA\"),'Enter Company Names'!J93,\"\")","v":""}]
[{"$f":"IF(AND('Enter Company Names'!J94<>0,'Enter Company Names'!J94<>\"NA\"),'Enter Company Names'!J94,\"\")","v":""}]
[{"$f":"IF(AND('Enter Company Names'!J95<>0,'Enter Company Names'!J95<>\"NA\"),'Enter Company Names'!J95,\"\")","v":""}]
[{"$f":"IF(AND('Enter Company Names'!J96<>0,'Enter Company Names'!J96<>\"NA\"),'Enter Company Names'!J96,\"\")","v":""}]
[{"$f":"IF(AND('Enter Company Names'!J97<>0,'Enter Company Names'!J97<>\"NA\"),'Enter Company Names'!J97,\"\")","v":""}]
[{"$f":"IF(AND('Enter Company Names'!J98<>0,'Enter Company Names'!J98<>\"NA\"),'Enter Company Names'!J98,\"\")","v":""}]
[{"$f":"IF(AND('Enter Company Names'!J99<>0,'Enter Company Names'!J99<>\"NA\"),'Enter Company Names'!J99,\"\")","v":""}]
[{"$f":"IF(AND('Enter Company Names'!J100<>0,'Enter Company Names'!J100<>\"NA\"),'Enter Company Names'!J100,\"\")","v":""}]
[{"$f":"IF(AND('Enter Company Names'!J101<>0,'Enter Company Names'!J101<>\"NA\"),'Enter Company Names'!J101,\"\")","v":""}]
[{"$f":"IF(AND('Enter Company Names'!J102<>0,'Enter Company Names'!J102<>\"NA\"),'Enter Company Names'!J102,\"\")","v":""}]
[{"$f":"IF(AND('Enter Company Names'!J103<>0,'Enter Company Names'!J103<>\"NA\"),'Enter Company Names'!J103,\"\")","v":""}]
[{"$f":"IF(AND('Enter Company Names'!J104<>0,'Enter Company Names'!J104<>\"NA\"),'Enter Company Names'!J104,\"\")","v":""}]
[{"$f":"IF(AND('Enter Company Names'!J105<>0,'Enter Company Names'!J105<>\"NA\"),'Enter Company Names'!J105,\"\")","v":""}]
[{"$f":"IF(AND('Enter Company Names'!J106<>0,'Enter Company Names'!J106<>\"NA\"),'Enter Company Names'!J106,\"\")","v":""}]
[{"$f":"IF(AND('Enter Company Names'!J107<>0,'Enter Company Names'!J107<>\"NA\"),'Enter Company Names'!J107,\"\")","v":""}]
[{"$f":"IF(AND('Enter Company Names'!J108<>0,'Enter Company Names'!J108<>\"NA\"),'Enter Company Names'!J108,\"\")","v":""}]
[{"$f":"IF(AND('Enter Company Names'!J109<>0,'Enter Company Names'!J109<>\"NA\"),'Enter Company Names'!J109,\"\")","v":""}]
[{"$f":"IF(AND('Enter Company Names'!J110<>0,'Enter Company Names'!J110<>\"NA\"),'Enter Company Names'!J110,\"\")","v":""}]
[{"$f":"IF(AND('Enter Company Names'!J111<>0,'Enter Company Names'!J111<>\"NA\"),'Enter Company Names'!J111,\"\")","v":""}]
[{"$f":"IF(AND('Enter Company Names'!J112<>0,'Enter Company Names'!J112<>\"NA\"),'Enter Company Names'!J112,\"\")","v":""}]
[{"$f":"IF(AND('Enter Company Names'!J113<>0,'Enter Company Names'!J113<>\"NA\"),'Enter Company Names'!J113,\"\")","v":""}]
[{"$f":"IF(AND('Enter Company Names'!J114<>0,'Enter Company Names'!J114<>\"NA\"),'Enter Company Names'!J114,\"\")","v":""}]
[{"$f":"IF(AND('Enter Company Names'!J115<>0,'Enter Company Names'!J115<>\"NA\"),'Enter Company Names'!J115,\"\")","v":""}]
[{"$f":"IF(AND('Enter Company Names'!J116<>0,'Enter Company Names'!J116<>\"NA\"),'Enter Company Names'!J116,\"\")","v":""}]
[{"$f":"IF(AND('Enter Company Names'!J117<>0,'Enter Company Names'!J117<>\"NA\"),'Enter Company Names'!J117,\"\")","v":""}]
[{"$f":"IF(AND('Enter Company Names'!J118<>0,'Enter Company Names'!J118<>\"NA\"),'Enter Company Names'!J118,\"\")","v":""}]
[{"$f":"IF(AND('Enter Company Names'!J119<>0,'Enter Company Names'!J119<>\"NA\"),'Enter Company Names'!J119,\"\")","v":""}]
[{"$f":"IF(AND('Enter Company Names'!J120<>0,'Enter Company Names'!J120<>\"NA\"),'Enter Company Names'!J120,\"\")","v":""}]
[{"$f":"IF(AND('Enter Company Names'!J121<>0,'Enter Company Names'!J121<>\"NA\"),'Enter Company Names'!J121,\"\")","v":""}]
[{"$f":"IF(AND('Enter Company Names'!J122<>0,'Enter Company Names'!J122<>\"NA\"),'Enter Company Names'!J122,\"\")","v":""}]
[{"$f":"IF(AND('Enter Company Names'!J123<>0,'Enter Company Names'!J123<>\"NA\"),'Enter Company Names'!J123,\"\")","v":""}]
[{"$f":"IF(AND('Enter Company Names'!J124<>0,'Enter Company Names'!J124<>\"NA\"),'Enter Company Names'!J124,\"\")","v":""}]
[{"$f":"IF(AND('Enter Company Names'!J125<>0,'Enter Company Names'!J125<>\"NA\"),'Enter Company Names'!J125,\"\")","v":""}]
[{"$f":"IF(AND('Enter Company Names'!J126<>0,'Enter Company Names'!J126<>\"NA\"),'Enter Company Names'!J126,\"\")","v":""}]
[{"$f":"IF(AND('Enter Company Names'!J127<>0,'Enter Company Names'!J127<>\"NA\"),'Enter Company Names'!J127,\"\")","v":""}]
[{"$f":"IF(AND('Enter Company Names'!J128<>0,'Enter Company Names'!J128<>\"NA\"),'Enter Company Names'!J128,\"\")","v":""}]
[{"$f":"IF(AND('Enter Company Names'!J129<>0,'Enter Company Names'!J129<>\"NA\"),'Enter Company Names'!J129,\"\")","v":""}]
[{"$f":"IF(AND('Enter Company Names'!J130<>0,'Enter Company Names'!J130<>\"NA\"),'Enter Company Names'!J130,\"\")","v":""}]
[{"$f":"IF(AND('Enter Company Names'!J131<>0,'Enter Company Names'!J131<>\"NA\"),'Enter Company Names'!J131,\"\")","v":""}]
[{"$f":"IF(AND('Enter Company Names'!J132<>0,'Enter Company Names'!J132<>\"NA\"),'Enter Company Names'!J132,\"\")","v":""}]
[{"$f":"IF(AND('Enter Company Names'!J133<>0,'Enter Company Names'!J133<>\"NA\"),'Enter Company Names'!J133,\"\")","v":""}]
[{"$f":"IF(AND('Enter Company Names'!J134<>0,'Enter Company Names'!J134<>\"NA\"),'Enter Company Names'!J134,\"\")","v":""}]
[{"$f":"IF(AND('Enter Company Names'!J135<>0,'Enter Company Names'!J135<>\"NA\"),'Enter Company Names'!J135,\"\")","v":""}]
[{"$f":"IF(AND('Enter Company Names'!J136<>0,'Enter Company Names'!J136<>\"NA\"),'Enter Company Names'!J136,\"\")","v":""}]
[{"$f":"IF(AND('Enter Company Names'!J137<>0,'Enter Company Names'!J137<>\"NA\"),'Enter Company Names'!J137,\"\")","v":""}]
[{"$f":"IF(AND('Enter Company Names'!J138<>0,'Enter Company Names'!J138<>\"NA\"),'Enter Company Names'!J138,\"\")","v":""}]
[{"$f":"IF(AND('Enter Company Names'!J139<>0,'Enter Company Names'!J139<>\"NA\"),'Enter Company Names'!J139,\"\")","v":""}]
[{"$f":"IF(AND('Enter Company Names'!J140<>0,'Enter Company Names'!J140<>\"NA\"),'Enter Company Names'!J140,\"\")","v":""}]
[{"$f":"IF(AND('Enter Company Names'!J141<>0,'Enter Company Names'!J141<>\"NA\"),'Enter Company Names'!J141,\"\")","v":""}]
[{"$f":"IF(AND('Enter Company Names'!J142<>0,'Enter Company Names'!J142<>\"NA\"),'Enter Company Names'!J142,\"\")","v":""}]
[{"$f":"IF(AND('Enter Company Names'!J143<>0,'Enter Company Names'!J143<>\"NA\"),'Enter Company Names'!J143,\"\")","v":""}]
[{"$f":"IF(AND('Enter Company Names'!J144<>0,'Enter Company Names'!J144<>\"NA\"),'Enter Company Names'!J144,\"\")","v":""}]
[{"$f":"IF(AND('Enter Company Names'!J145<>0,'Enter Company Names'!J145<>\"NA\"),'Enter Company Names'!J145,\"\")","v":""}]
[{"$f":"IF(AND('Enter Company Names'!J146<>0,'Enter Company Names'!J146<>\"NA\"),'Enter Company Names'!J146,\"\")","v":""}]
[{"$f":"IF(AND('Enter Company Names'!J147<>0,'Enter Company Names'!J147<>\"NA\"),'Enter Company Names'!J147,\"\")","v":""}]
[{"$f":"IF(AND('Enter Company Names'!J148<>0,'Enter Company Names'!J148<>\"NA\"),'Enter Company Names'!J148,\"\")","v":""}]
[{"$f":"IF(AND('Enter Company Names'!J149<>0,'Enter Company Names'!J149<>\"NA\"),'Enter Company Names'!J149,\"\")","v":""}]
[{"$f":"IF(AND('Enter Company Names'!J150<>0,'Enter Company Names'!J150<>\"NA\"),'Enter Company Names'!J150,\"\")","v":""}]
[{"$f":"IF(AND('Enter Company Names'!J151<>0,'Enter Company Names'!J151<>\"NA\"),'Enter Company Names'!J151,\"\")","v":""}]
[{"$f":"IF(AND('Enter Company Names'!J152<>0,'Enter Company Names'!J152<>\"NA\"),'Enter Company Names'!J152,\"\")","v":""}]
[{"$f":"IF(AND('Enter Company Names'!J153<>0,'Enter Company Names'!J153<>\"NA\"),'Enter Company Names'!J153,\"\")","v":""}]
[{"$f":"IF(AND('Enter Company Names'!J154<>0,'Enter Company Names'!J154<>\"NA\"),'Enter Company Names'!J154,\"\")","v":""}]
[{"$f":"IF(AND('Enter Company Names'!J155<>0,'Enter Company Names'!J155<>\"NA\"),'Enter Company Names'!J155,\"\")","v":""}]
[{"$f":"IF(AND('Enter Company Names'!J156<>0,'Enter Company Names'!J156<>\"NA\"),'Enter Company Names'!J156,\"\")","v":""}]
[{"$f":"IF(AND('Enter Company Names'!J157<>0,'Enter Company Names'!J157<>\"NA\"),'Enter Company Names'!J157,\"\")","v":""}]
[{"$f":"IF(AND('Enter Company Names'!J158<>0,'Enter Company Names'!J158<>\"NA\"),'Enter Company Names'!J158,\"\")","v":""}]
[{"$f":"IF(AND('Enter Company Names'!J159<>0,'Enter Company Names'!J159<>\"NA\"),'Enter Company Names'!J159,\"\")","v":""}]
[{"$f":"IF(AND('Enter Company Names'!J160<>0,'Enter Company Names'!J160<>\"NA\"),'Enter Company Names'!J160,\"\")","v":""}]
[{"$f":"IF(AND('Enter Company Names'!J161<>0,'Enter Company Names'!J161<>\"NA\"),'Enter Company Names'!J161,\"\")","v":""}]
[{"$f":"IF(AND('Enter Company Names'!J162<>0,'Enter Company Names'!J162<>\"NA\"),'Enter Company Names'!J162,\"\")","v":""}]
[{"$f":"IF(AND('Enter Company Names'!J163<>0,'Enter Company Names'!J163<>\"NA\"),'Enter Company Names'!J163,\"\")","v":""}]
[{"$f":"IF(AND('Enter Company Names'!J164<>0,'Enter Company Names'!J164<>\"NA\"),'Enter Company Names'!J164,\"\")","v":""}]
[{"$f":"IF(AND('Enter Company Names'!J165<>0,'Enter Company Names'!J165<>\"NA\"),'Enter Company Names'!J165,\"\")","v":""}]
[{"$f":"IF(AND('Enter Company Names'!J166<>0,'Enter Company Names'!J166<>\"NA\"),'Enter Company Names'!J166,\"\")","v":""}]
[{"$f":"IF(AND('Enter Company Names'!J167<>0,'Enter Company Names'!J167<>\"NA\"),'Enter Company Names'!J167,\"\")","v":""}]
[{"$f":"IF(AND('Enter Company Names'!J168<>0,'Enter Company Names'!J168<>\"NA\"),'Enter Company Names'!J168,\"\")","v":""}]
[{"$f":"IF(AND('Enter Company Names'!J169<>0,'Enter Company Names'!J169<>\"NA\"),'Enter Company Names'!J169,\"\")","v":""}]
[{"$f":"IF(AND('Enter Company Names'!J170<>0,'Enter Company Names'!J170<>\"NA\"),'Enter Company Names'!J170,\"\")","v":""}]
[{"$f":"IF(AND('Enter Company Names'!J171<>0,'Enter Company Names'!J171<>\"NA\"),'Enter Company Names'!J171,\"\")","v":""}]
[{"$f":"IF(AND('Enter Company Names'!J172<>0,'Enter Company Names'!J172<>\"NA\"),'Enter Company Names'!J172,\"\")","v":""}]
[{"$f":"IF(AND('Enter Company Names'!J173<>0,'Enter Company Names'!J173<>\"NA\"),'Enter Company Names'!J173,\"\")","v":""}]
[{"$f":"IF(AND('Enter Company Names'!J174<>0,'Enter Company Names'!J174<>\"NA\"),'Enter Company Names'!J174,\"\")","v":""}]
[{"$f":"IF(AND('Enter Company Names'!J175<>0,'Enter Company Names'!J175<>\"NA\"),'Enter Company Names'!J175,\"\")","v":""}]
[{"$f":"IF(AND('Enter Company Names'!J176<>0,'Enter Company Names'!J176<>\"NA\"),'Enter Company Names'!J176,\"\")","v":""}]
[{"$f":"IF(AND('Enter Company Names'!J177<>0,'Enter Company Names'!J177<>\"NA\"),'Enter Company Names'!J177,\"\")","v":""}]
[{"$f":"IF(AND('Enter Company Names'!J178<>0,'Enter Company Names'!J178<>\"NA\"),'Enter Company Names'!J178,\"\")","v":""}]
[{"$f":"IF(AND('Enter Company Names'!J179<>0,'Enter Company Names'!J179<>\"NA\"),'Enter Company Names'!J179,\"\")","v":""}]
[{"$f":"IF(AND('Enter Company Names'!J180<>0,'Enter Company Names'!J180<>\"NA\"),'Enter Company Names'!J180,\"\")","v":""}]
[{"$f":"IF(AND('Enter Company Names'!J181<>0,'Enter Company Names'!J181<>\"NA\"),'Enter Company Names'!J181,\"\")","v":""}]
[{"$f":"IF(AND('Enter Company Names'!J182<>0,'Enter Company Names'!J182<>\"NA\"),'Enter Company Names'!J182,\"\")","v":""}]
[{"$f":"IF(AND('Enter Company Names'!J183<>0,'Enter Company Names'!J183<>\"NA\"),'Enter Company Names'!J183,\"\")","v":""}]
[{"$f":"IF(AND('Enter Company Names'!J184<>0,'Enter Company Names'!J184<>\"NA\"),'Enter Company Names'!J184,\"\")","v":""}]
[{"$f":"IF(AND('Enter Company Names'!J185<>0,'Enter Company Names'!J185<>\"NA\"),'Enter Company Names'!J185,\"\")","v":""}]
[{"$f":"IF(AND('Enter Company Names'!J186<>0,'Enter Company Names'!J186<>\"NA\"),'Enter Company Names'!J186,\"\")","v":""}]
[{"$f":"IF(AND('Enter Company Names'!J187<>0,'Enter Company Names'!J187<>\"NA\"),'Enter Company Names'!J187,\"\")","v":""}]
[{"$f":"IF(AND('Enter Company Names'!J188<>0,'Enter Company Names'!J188<>\"NA\"),'Enter Company Names'!J188,\"\")","v":""}]
[{"$f":"IF(AND('Enter Company Names'!J189<>0,'Enter Company Names'!J189<>\"NA\"),'Enter Company Names'!J189,\"\")","v":""}]
[{"$f":"IF(AND('Enter Company Names'!J190<>0,'Enter Company Names'!J190<>\"NA\"),'Enter Company Names'!J190,\"\")","v":""}]
[{"$f":"IF(AND('Enter Company Names'!J191<>0,'Enter Company Names'!J191<>\"NA\"),'Enter Company Names'!J191,\"\")","v":""}]
[{"$f":"IF(AND('Enter Company Names'!J192<>0,'Enter Company Names'!J192<>\"NA\"),'Enter Company Names'!J192,\"\")","v":""}]
[{"$f":"IF(AND('Enter Company Names'!J193<>0,'Enter Company Names'!J193<>\"NA\"),'Enter Company Names'!J193,\"\")","v":""}]
[{"$f":"IF(AND('Enter Company Names'!J194<>0,'Enter Company Names'!J194<>\"NA\"),'Enter Company Names'!J194,\"\")","v":""}]
[{"$f":"IF(AND('Enter Company Names'!J195<>0,'Enter Company Names'!J195<>\"NA\"),'Enter Company Names'!J195,\"\")","v":""}]
[{"$f":"IF(AND('Enter Company Names'!J196<>0,'Enter Company Names'!J196<>\"NA\"),'Enter Company Names'!J196,\"\")","v":""}]
[{"$f":"IF(AND('Enter Company Names'!J197<>0,'Enter Company Names'!J197<>\"NA\"),'Enter Company Names'!J197,\"\")","v":""}]
[{"$f":"IF(AND('Enter Company Names'!J198<>0,'Enter Company Names'!J198<>\"NA\"),'Enter Company Names'!J198,\"\")","v":""}]
[{"$f":"IF(AND('Enter Company Names'!J199<>0,'Enter Company Names'!J199<>\"NA\"),'Enter Company Names'!J199,\"\")","v":""}]
[{"$f":"IF(AND('Enter Company Names'!J200<>0,'Enter Company Names'!J200<>\"NA\"),'Enter Company Names'!J200,\"\")","v":""}]
[{"$f":"IF(AND('Enter Company Names'!J201<>0,'Enter Company Names'!J201<>\"NA\"),'Enter Company Names'!J201,\"\")","v":""}]
[{"$f":"IF(AND('Enter Company Names'!J202<>0,'Enter Company Names'!J202<>\"NA\"),'Enter Company Names'!J202,\"\")","v":""}]
[{"$f":"IF(AND('Enter Company Names'!J203<>0,'Enter Company Names'!J203<>\"NA\"),'Enter Company Names'!J203,\"\")","v":""}]
[{"$f":"IF(AND('Enter Company Names'!J204<>0,'Enter Company Names'!J204<>\"NA\"),'Enter Company Names'!J204,\"\")","v":""}]
[{"$f":"IF(AND('Enter Company Names'!J205<>0,'Enter Company Names'!J205<>\"NA\"),'Enter Company Names'!J205,\"\")","v":""}]
[{"$f":"IF(AND('Enter Company Names'!J206<>0,'Enter Company Names'!J206<>\"NA\"),'Enter Company Names'!J206,\"\")","v":""}]
[{"$f":"IF(AND('Enter Company Names'!J207<>0,'Enter Company Names'!J207<>\"NA\"),'Enter Company Names'!J207,\"\")","v":""}]
[{"$f":"IF(AND('Enter Company Names'!J208<>0,'Enter Company Names'!J208<>\"NA\"),'Enter Company Names'!J208,\"\")","v":""}]
[{"$f":"IF(AND('Enter Company Names'!J209<>0,'Enter Company Names'!J209<>\"NA\"),'Enter Company Names'!J209,\"\")","v":""}]
[{"$f":"IF(AND('Enter Company Names'!J210<>0,'Enter Company Names'!J210<>\"NA\"),'Enter Company Names'!J210,\"\")","v":""}]
[{"$f":"IF(AND('Enter Company Names'!J211<>0,'Enter Company Names'!J211<>\"NA\"),'Enter Company Names'!J211,\"\")","v":""}]
[{"$f":"IF(AND('Enter Company Names'!J212<>0,'Enter Company Names'!J212<>\"NA\"),'Enter Company Names'!J212,\"\")","v":""}]
[{"$f":"IF(AND('Enter Company Names'!J213<>0,'Enter Company Names'!J213<>\"NA\"),'Enter Company Names'!J213,\"\")","v":""}]
[{"$f":"IF(AND('Enter Company Names'!J214<>0,'Enter Company Names'!J214<>\"NA\"),'Enter Company Names'!J214,\"\")","v":""}]
[{"$f":"IF(AND('Enter Company Names'!J215<>0,'Enter Company Names'!J215<>\"NA\"),'Enter Company Names'!J215,\"\")","v":""}]
[{"$f":"IF(AND('Enter Company Names'!J216<>0,'Enter Company Names'!J216<>\"NA\"),'Enter Company Names'!J216,\"\")","v":""}]
[{"$f":"IF(AND('Enter Company Names'!J217<>0,'Enter Company Names'!J217<>\"NA\"),'Enter Company Names'!J217,\"\")","v":""}]
[{"$f":"IF(AND('Enter Company Names'!J218<>0,'Enter Company Names'!J218<>\"NA\"),'Enter Company Names'!J218,\"\")","v":""}]
[{"$f":"IF(AND('Enter Company Names'!J219<>0,'Enter Company Names'!J219<>\"NA\"),'Enter Company Names'!J219,\"\")","v":""}]
[{"$f":"IF(AND('Enter Company Names'!J220<>0,'Enter Company Names'!J220<>\"NA\"),'Enter Company Names'!J220,\"\")","v":""}]
[{"$f":"IF(AND('Enter Company Names'!J221<>0,'Enter Company Names'!J221<>\"NA\"),'Enter Company Names'!J221,\"\")","v":""}]
[{"$f":"IF(AND('Enter Company Names'!J222<>0,'Enter Company Names'!J222<>\"NA\"),'Enter Company Names'!J222,\"\")","v":""}]
[{"$f":"IF(AND('Enter Company Names'!J223<>0,'Enter Company Names'!J223<>\"NA\"),'Enter Company Names'!J223,\"\")","v":""}]
[{"$f":"IF(AND('Enter Company Names'!J224<>0,'Enter Company Names'!J224<>\"NA\"),'Enter Company Names'!J224,\"\")","v":""}]
[{"$f":"IF(AND('Enter Company Names'!J225<>0,'Enter Company Names'!J225<>\"NA\"),'Enter Company Names'!J225,\"\")","v":""}]
[{"$f":"IF(AND('Enter Company Names'!J226<>0,'Enter Company Names'!J226<>\"NA\"),'Enter Company Names'!J226,\"\")","v":""}]
[{"$f":"IF(AND('Enter Company Names'!J227<>0,'Enter Company Names'!J227<>\"NA\"),'Enter Company Names'!J227,\"\")","v":""}]
[{"$f":"IF(AND('Enter Company Names'!J228<>0,'Enter Company Names'!J228<>\"NA\"),'Enter Company Names'!J228,\"\")","v":""}]
[{"$f":"IF(AND('Enter Company Names'!J229<>0,'Enter Company Names'!J229<>\"NA\"),'Enter Company Names'!J229,\"\")","v":""}]
[{"$f":"IF(AND('Enter Company Names'!J230<>0,'Enter Company Names'!J230<>\"NA\"),'Enter Company Names'!J230,\"\")","v":""}]
[{"$f":"IF(AND('Enter Company Names'!J231<>0,'Enter Company Names'!J231<>\"NA\"),'Enter Company Names'!J231,\"\")","v":""}]
[{"$f":"IF(AND('Enter Company Names'!J232<>0,'Enter Company Names'!J232<>\"NA\"),'Enter Company Names'!J232,\"\")","v":""}]
[{"$f":"IF(AND('Enter Company Names'!J233<>0,'Enter Company Names'!J233<>\"NA\"),'Enter Company Names'!J233,\"\")","v":""}]
[{"$f":"IF(AND('Enter Company Names'!J234<>0,'Enter Company Names'!J234<>\"NA\"),'Enter Company Names'!J234,\"\")","v":""}]
[{"$f":"IF(AND('Enter Company Names'!J235<>0,'Enter Company Names'!J235<>\"NA\"),'Enter Company Names'!J235,\"\")","v":""}]
[{"$f":"IF(AND('Enter Company Names'!J236<>0,'Enter Company Names'!J236<>\"NA\"),'Enter Company Names'!J236,\"\")","v":""}]
[{"$f":"IF(AND('Enter Company Names'!J237<>0,'Enter Company Names'!J237<>\"NA\"),'Enter Company Names'!J237,\"\")","v":""}]
[{"$f":"IF(AND('Enter Company Names'!J238<>0,'Enter Company Names'!J238<>\"NA\"),'Enter Company Names'!J238,\"\")","v":""}]
[{"$f":"IF(AND('Enter Company Names'!J239<>0,'Enter Company Names'!J239<>\"NA\"),'Enter Company Names'!J239,\"\")","v":""}]
[{"$f":"IF(AND('Enter Company Names'!J240<>0,'Enter Company Names'!J240<>\"NA\"),'Enter Company Names'!J240,\"\")","v":""}]
[{"$f":"IF(AND('Enter Company Names'!J241<>0,'Enter Company Names'!J241<>\"NA\"),'Enter Company Names'!J241,\"\")","v":""}]
[{"$f":"IF(AND('Enter Company Names'!J242<>0,'Enter Company Names'!J242<>\"NA\"),'Enter Company Names'!J242,\"\")","v":""}]
[{"$f":"IF(AND('Enter Company Names'!J243<>0,'Enter Company Names'!J243<>\"NA\"),'Enter Company Names'!J243,\"\")","v":""}]
[{"$f":"IF(AND('Enter Company Names'!J244<>0,'Enter Company Names'!J244<>\"NA\"),'Enter Company Names'!J244,\"\")","v":""}]
[{"$f":"IF(AND('Enter Company Names'!J245<>0,'Enter Company Names'!J245<>\"NA\"),'Enter Company Names'!J245,\"\")","v":""}]
[{"$f":"IF(AND('Enter Company Names'!J246<>0,'Enter Company Names'!J246<>\"NA\"),'Enter Company Names'!J246,\"\")","v":""}]
[{"$f":"IF(AND('Enter Company Names'!J247<>0,'Enter Company Names'!J247<>\"NA\"),'Enter Company Names'!J247,\"\")","v":""}]
[{"$f":"IF(AND('Enter Company Names'!J248<>0,'Enter Company Names'!J248<>\"NA\"),'Enter Company Names'!J248,\"\")","v":""}]
[{"$f":"IF(AND('Enter Company Names'!J249<>0,'Enter Company Names'!J249<>\"NA\"),'Enter Company Names'!J249,\"\")","v":""}]
[{"$f":"IF(AND('Enter Company Names'!J250<>0,'Enter Company Names'!J250<>\"NA\"),'Enter Company Names'!J250,\"\")","v":""}]
[{"$f":"IF(AND('Enter Company Names'!J251<>0,'Enter Company Names'!J251<>\"NA\"),'Enter Company Names'!J251,\"\")","v":""}]
[{"$f":"IF(AND('Enter Company Names'!J252<>0,'Enter Company Names'!J252<>\"NA\"),'Enter Company Names'!J252,\"\")","v":""}]
[{"$f":"IF(AND('Enter Company Names'!J253<>0,'Enter Company Names'!J253<>\"NA\"),'Enter Company Names'!J253,\"\")","v":""}]
[{"$f":"IF(AND('Enter Company Names'!J254<>0,'Enter Company Names'!J254<>\"NA\"),'Enter Company Names'!J254,\"\")","v":""}]
[{"$f":"IF(AND('Enter Company Names'!J255<>0,'Enter Company Names'!J255<>\"NA\"),'Enter Company Names'!J255,\"\")","v":""}]
[{"$f":"IF(AND('Enter Company Names'!J256<>0,'Enter Company Names'!J256<>\"NA\"),'Enter Company Names'!J256,\"\")","v":""}]
[{"$f":"IF(AND('Enter Company Names'!J257<>0,'Enter Company Names'!J257<>\"NA\"),'Enter Company Names'!J257,\"\")","v":""}]
[{"$f":"IF(AND('Enter Company Names'!J258<>0,'Enter Company Names'!J258<>\"NA\"),'Enter Company Names'!J258,\"\")","v":""}]
[{"$f":"IF(AND('Enter Company Names'!J259<>0,'Enter Company Names'!J259<>\"NA\"),'Enter Company Names'!J259,\"\")","v":""}]
[{"$f":"IF(AND('Enter Company Names'!J260<>0,'Enter Company Names'!J260<>\"NA\"),'Enter Company Names'!J260,\"\")","v":""}]
[{"$f":"IF(AND('Enter Company Names'!J261<>0,'Enter Company Names'!J261<>\"NA\"),'Enter Company Names'!J261,\"\")","v":""}]
[{"$f":"IF(AND('Enter Company Names'!J262<>0,'Enter Company Names'!J262<>\"NA\"),'Enter Company Names'!J262,\"\")","v":""}]
[{"$f":"IF(AND('Enter Company Names'!J263<>0,'Enter Company Names'!J263<>\"NA\"),'Enter Company Names'!J263,\"\")","v":""}]
[{"$f":"IF(AND('Enter Company Names'!J264<>0,'Enter Company Names'!J264<>\"NA\"),'Enter Company Names'!J264,\"\")","v":""}]
[{"$f":"IF(AND('Enter Company Names'!J265<>0,'Enter Company Names'!J265<>\"NA\"),'Enter Company Names'!J265,\"\")","v":""}]
[{"$f":"IF(AND('Enter Company Names'!J266<>0,'Enter Company Names'!J266<>\"NA\"),'Enter Company Names'!J266,\"\")","v":""}]
[{"$f":"IF(AND('Enter Company Names'!J267<>0,'Enter Company Names'!J267<>\"NA\"),'Enter Company Names'!J267,\"\")","v":""}]
[{"$f":"IF(AND('Enter Company Names'!J268<>0,'Enter Company Names'!J268<>\"NA\"),'Enter Company Names'!J268,\"\")","v":""}]
[{"$f":"IF(AND('Enter Company Names'!J269<>0,'Enter Company Names'!J269<>\"NA\"),'Enter Company Names'!J269,\"\")","v":""}]
[{"$f":"IF(AND('Enter Company Names'!J270<>0,'Enter Company Names'!J270<>\"NA\"),'Enter Company Names'!J270,\"\")","v":""}]
[{"$f":"IF(AND('Enter Company Names'!J271<>0,'Enter Company Names'!J271<>\"NA\"),'Enter Company Names'!J271,\"\")","v":""}]
[{"$f":"IF(AND('Enter Company Names'!J272<>0,'Enter Company Names'!J272<>\"NA\"),'Enter Company Names'!J272,\"\")","v":""}]
[{"$f":"IF(AND('Enter Company Names'!J273<>0,'Enter Company Names'!J273<>\"NA\"),'Enter Company Names'!J273,\"\")","v":""}]
[{"$f":"IF(AND('Enter Company Names'!J274<>0,'Enter Company Names'!J274<>\"NA\"),'Enter Company Names'!J274,\"\")","v":""}]
[{"$f":"IF(AND('Enter Company Names'!J275<>0,'Enter Company Names'!J275<>\"NA\"),'Enter Company Names'!J275,\"\")","v":""}]
[{"$f":"IF(AND('Enter Company Names'!J276<>0,'Enter Company Names'!J276<>\"NA\"),'Enter Company Names'!J276,\"\")","v":""}]
[{"$f":"IF(AND('Enter Company Names'!J277<>0,'Enter Company Names'!J277<>\"NA\"),'Enter Company Names'!J277,\"\")","v":""}]
[{"$f":"IF(AND('Enter Company Names'!J278<>0,'Enter Company Names'!J278<>\"NA\"),'Enter Company Names'!J278,\"\")","v":""}]
[{"$f":"IF(AND('Enter Company Names'!J279<>0,'Enter Company Names'!J279<>\"NA\"),'Enter Company Names'!J279,\"\")","v":""}]
[{"$f":"IF(AND('Enter Company Names'!J280<>0,'Enter Company Names'!J280<>\"NA\"),'Enter Company Names'!J280,\"\")","v":""}]
[{"$f":"IF(AND('Enter Company Names'!J281<>0,'Enter Company Names'!J281<>\"NA\"),'Enter Company Names'!J281,\"\")","v":""}]
[{"$f":"IF(AND('Enter Company Names'!J282<>0,'Enter Company Names'!J282<>\"NA\"),'Enter Company Names'!J282,\"\")","v":""}]
[{"$f":"IF(AND('Enter Company Names'!J283<>0,'Enter Company Names'!J283<>\"NA\"),'Enter Company Names'!J283,\"\")","v":""}]
[{"$f":"IF(AND('Enter Company Names'!J284<>0,'Enter Company Names'!J284<>\"NA\"),'Enter Company Names'!J284,\"\")","v":""}]
[{"$f":"IF(AND('Enter Company Names'!J285<>0,'Enter Company Names'!J285<>\"NA\"),'Enter Company Names'!J285,\"\")","v":""}]
[{"$f":"IF(AND('Enter Company Names'!J286<>0,'Enter Company Names'!J286<>\"NA\"),'Enter Company Names'!J286,\"\")","v":""}]
[{"$f":"IF(AND('Enter Company Names'!J287<>0,'Enter Company Names'!J287<>\"NA\"),'Enter Company Names'!J287,\"\")","v":""}]
[{"$f":"IF(AND('Enter Company Names'!J288<>0,'Enter Company Names'!J288<>\"NA\"),'Enter Company Names'!J288,\"\")","v":""}]
[{"$f":"IF(AND('Enter Company Names'!J289<>0,'Enter Company Names'!J289<>\"NA\"),'Enter Company Names'!J289,\"\")","v":""}]
[{"$f":"IF(AND('Enter Company Names'!J290<>0,'Enter Company Names'!J290<>\"NA\"),'Enter Company Names'!J290,\"\")","v":""}]
[{"$f":"IF(AND('Enter Company Names'!J291<>0,'Enter Company Names'!J291<>\"NA\"),'Enter Company Names'!J291,\"\")","v":""}]
[{"$f":"IF(AND('Enter Company Names'!J292<>0,'Enter Company Names'!J292<>\"NA\"),'Enter Company Names'!J292,\"\")","v":""}]
[{"$f":"IF(AND('Enter Company Names'!J293<>0,'Enter Company Names'!J293<>\"NA\"),'Enter Company Names'!J293,\"\")","v":""}]
[{"$f":"IF(AND('Enter Company Names'!J294<>0,'Enter Company Names'!J294<>\"NA\"),'Enter Company Names'!J294,\"\")","v":""}]
[{"$f":"IF(AND('Enter Company Names'!J295<>0,'Enter Company Names'!J295<>\"NA\"),'Enter Company Names'!J295,\"\")","v":""}]
[{"$f":"IF(AND('Enter Company Names'!J296<>0,'Enter Company Names'!J296<>\"NA\"),'Enter Company Names'!J296,\"\")","v":""}]
[{"$f":"IF(AND('Enter Company Names'!J297<>0,'Enter Company Names'!J297<>\"NA\"),'Enter Company Names'!J297,\"\")","v":""}]
[{"$f":"IF(AND('Enter Company Names'!J298<>0,'Enter Company Names'!J298<>\"NA\"),'Enter Company Names'!J298,\"\")","v":""}]
[{"$f":"IF(AND('Enter Company Names'!J299<>0,'Enter Company Names'!J299<>\"NA\"),'Enter Company Names'!J299,\"\")","v":""}]
[{"$f":"IF(AND('Enter Company Names'!J300<>0,'Enter Company Names'!J300<>\"NA\"),'Enter Company Names'!J300,\"\")","v":""}]
[{"$f":"IF(AND('Enter Company Names'!J301<>0,'Enter Company Names'!J301<>\"NA\"),'Enter Company Names'!J301,\"\")","v":""}]
[{"$f":"IF(AND('Enter Company Names'!J302<>0,'Enter Company Names'!J302<>\"NA\"),'Enter Company Names'!J302,\"\")","v":""}]
[{"$f":"IF(AND('Enter Company Names'!J303<>0,'Enter Company Names'!J303<>\"NA\"),'Enter Company Names'!J303,\"\")","v":""}]
[{"$f":"IF(AND('Enter Company Names'!J304<>0,'Enter Company Names'!J304<>\"NA\"),'Enter Company Names'!J304,\"\")","v":""}]
[{"$f":"IF(AND('Enter Company Names'!J305<>0,'Enter Company Names'!J305<>\"NA\"),'Enter Company Names'!J305,\"\")","v":""}]
[{"$f":"IF(AND('Enter Company Names'!J306<>0,'Enter Company Names'!J306<>\"NA\"),'Enter Company Names'!J306,\"\")","v":""}]
[{"$f":"IF(AND('Enter Company Names'!J307<>0,'Enter Company Names'!J307<>\"NA\"),'Enter Company Names'!J307,\"\")","v":""}]
[{"$f":"IF(AND('Enter Company Names'!J308<>0,'Enter Company Names'!J308<>\"NA\"),'Enter Company Names'!J308,\"\")","v":""}]
[{"$f":"IF(AND('Enter Company Names'!J309<>0,'Enter Company Names'!J309<>\"NA\"),'Enter Company Names'!J309,\"\")","v":""}]
[{"$f":"IF(AND('Enter Company Names'!J310<>0,'Enter Company Names'!J310<>\"NA\"),'Enter Company Names'!J310,\"\")","v":""}]
[{"$f":"IF(AND('Enter Company Names'!J311<>0,'Enter Company Names'!J311<>\"NA\"),'Enter Company Names'!J311,\"\")","v":""}]
[{"$f":"IF(AND('Enter Company Names'!J312<>0,'Enter Company Names'!J312<>\"NA\"),'Enter Company Names'!J312,\"\")","v":""}]
[{"$f":"IF(AND('Enter Company Names'!J313<>0,'Enter Company Names'!J313<>\"NA\"),'Enter Company Names'!J313,\"\")","v":""}]
[{"$f":"IF(AND('Enter Company Names'!J314<>0,'Enter Company Names'!J314<>\"NA\"),'Enter Company Names'!J314,\"\")","v":""}]
[{"$f":"IF(AND('Enter Company Names'!J315<>0,'Enter Company Names'!J315<>\"NA\"),'Enter Company Names'!J315,\"\")","v":""}]
[{"$f":"IF(AND('Enter Company Names'!J316<>0,'Enter Company Names'!J316<>\"NA\"),'Enter Company Names'!J316,\"\")","v":""}]
[{"$f":"IF(AND('Enter Company Names'!J317<>0,'Enter Company Names'!J317<>\"NA\"),'Enter Company Names'!J317,\"\")","v":""}]
[{"$f":"IF(AND('Enter Company Names'!J318<>0,'Enter Company Names'!J318<>\"NA\"),'Enter Company Names'!J318,\"\")","v":""}]
[{"$f":"IF(AND('Enter Company Names'!J319<>0,'Enter Company Names'!J319<>\"NA\"),'Enter Company Names'!J319,\"\")","v":""}]
[{"$f":"IF(AND('Enter Company Names'!J320<>0,'Enter Company Names'!J320<>\"NA\"),'Enter Company Names'!J320,\"\")","v":""}]
[{"$f":"IF(AND('Enter Company Names'!J321<>0,'Enter Company Names'!J321<>\"NA\"),'Enter Company Names'!J321,\"\")","v":""}]
[{"$f":"IF(AND('Enter Company Names'!J322<>0,'Enter Company Names'!J322<>\"NA\"),'Enter Company Names'!J322,\"\")","v":""}]
[{"$f":"IF(AND('Enter Company Names'!J323<>0,'Enter Company Names'!J323<>\"NA\"),'Enter Company Names'!J323,\"\")","v":""}]
[{"$f":"IF(AND('Enter Company Names'!J324<>0,'Enter Company Names'!J324<>\"NA\"),'Enter Company Names'!J324,\"\")","v":""}]
[{"$f":"IF(AND('Enter Company Names'!J325<>0,'Enter Company Names'!J325<>\"NA\"),'Enter Company Names'!J325,\"\")","v":""}]
[{"$f":"IF(AND('Enter Company Names'!J326<>0,'Enter Company Names'!J326<>\"NA\"),'Enter Company Names'!J326,\"\")","v":""}]
[{"$f":"IF(AND('Enter Company Names'!J327<>0,'Enter Company Names'!J327<>\"NA\"),'Enter Company Names'!J327,\"\")","v":""}]
[{"$f":"IF(AND('Enter Company Names'!J328<>0,'Enter Company Names'!J328<>\"NA\"),'Enter Company Names'!J328,\"\")","v":""}]
[{"$f":"IF(AND('Enter Company Names'!J329<>0,'Enter Company Names'!J329<>\"NA\"),'Enter Company Names'!J329,\"\")","v":""}]
[{"$f":"IF(AND('Enter Company Names'!J330<>0,'Enter Company Names'!J330<>\"NA\"),'Enter Company Names'!J330,\"\")","v":""}]
[{"$f":"IF(AND('Enter Company Names'!J331<>0,'Enter Company Names'!J331<>\"NA\"),'Enter Company Names'!J331,\"\")","v":""}]
[{"$f":"IF(AND('Enter Company Names'!J332<>0,'Enter Company Names'!J332<>\"NA\"),'Enter Company Names'!J332,\"\")","v":""}]
[{"$f":"IF(AND('Enter Company Names'!J333<>0,'Enter Company Names'!J333<>\"NA\"),'Enter Company Names'!J333,\"\")","v":""}]
[{"$f":"IF(AND('Enter Company Names'!J334<>0,'Enter Company Names'!J334<>\"NA\"),'Enter Company Names'!J334,\"\")","v":""}]
[{"$f":"IF(AND('Enter Company Names'!J335<>0,'Enter Company Names'!J335<>\"NA\"),'Enter Company Names'!J335,\"\")","v":""}]
[{"$f":"IF(AND('Enter Company Names'!J336<>0,'Enter Company Names'!J336<>\"NA\"),'Enter Company Names'!J336,\"\")","v":""}]
[{"$f":"IF(AND('Enter Company Names'!J337<>0,'Enter Company Names'!J337<>\"NA\"),'Enter Company Names'!J337,\"\")","v":""}]
[{"$f":"IF(AND('Enter Company Names'!J338<>0,'Enter Company Names'!J338<>\"NA\"),'Enter Company Names'!J338,\"\")","v":""}]
[{"$f":"IF(AND('Enter Company Names'!J339<>0,'Enter Company Names'!J339<>\"NA\"),'Enter Company Names'!J339,\"\")","v":""}]
[{"$f":"IF(AND('Enter Company Names'!J340<>0,'Enter Company Names'!J340<>\"NA\"),'Enter Company Names'!J340,\"\")","v":""}]
[{"$f":"IF(AND('Enter Company Names'!J341<>0,'Enter Company Names'!J341<>\"NA\"),'Enter Company Names'!J341,\"\")","v":""}]
[{"$f":"IF(AND('Enter Company Names'!J342<>0,'Enter Company Names'!J342<>\"NA\"),'Enter Company Names'!J342,\"\")","v":""}]
[{"$f":"IF(AND('Enter Company Names'!J343<>0,'Enter Company Names'!J343<>\"NA\"),'Enter Company Names'!J343,\"\")","v":""}]
[{"$f":"IF(AND('Enter Company Names'!J344<>0,'Enter Company Names'!J344<>\"NA\"),'Enter Company Names'!J344,\"\")","v":""}]
[{"$f":"IF(AND('Enter Company Names'!J345<>0,'Enter Company Names'!J345<>\"NA\"),'Enter Company Names'!J345,\"\")","v":""}]
[{"$f":"IF(AND('Enter Company Names'!J346<>0,'Enter Company Names'!J346<>\"NA\"),'Enter Company Names'!J346,\"\")","v":""}]
[{"$f":"IF(AND('Enter Company Names'!J347<>0,'Enter Company Names'!J347<>\"NA\"),'Enter Company Names'!J347,\"\")","v":""}]
[{"$f":"IF(AND('Enter Company Names'!J348<>0,'Enter Company Names'!J348<>\"NA\"),'Enter Company Names'!J348,\"\")","v":""}]
[{"$f":"IF(AND('Enter Company Names'!J349<>0,'Enter Company Names'!J349<>\"NA\"),'Enter Company Names'!J349,\"\")","v":""}]
[{"$f":"IF(AND('Enter Company Names'!J350<>0,'Enter Company Names'!J350<>\"NA\"),'Enter Company Names'!J350,\"\")","v":""}]
[{"$f":"IF(AND('Enter Company Names'!J351<>0,'Enter Company Names'!J351<>\"NA\"),'Enter Company Names'!J351,\"\")","v":""}]
[{"$f":"IF(AND('Enter Company Names'!J352<>0,'Enter Company Names'!J352<>\"NA\"),'Enter Company Names'!J352,\"\")","v":""}]
[{"$f":"IF(AND('Enter Company Names'!J353<>0,'Enter Company Names'!J353<>\"NA\"),'Enter Company Names'!J353,\"\")","v":""}]
[{"$f":"IF(AND('Enter Company Names'!J354<>0,'Enter Company Names'!J354<>\"NA\"),'Enter Company Names'!J354,\"\")","v":""}]
[{"$f":"IF(AND('Enter Company Names'!J355<>0,'Enter Company Names'!J355<>\"NA\"),'Enter Company Names'!J355,\"\")","v":""}]
[{"$f":"IF(AND('Enter Company Names'!J356<>0,'Enter Company Names'!J356<>\"NA\"),'Enter Company Names'!J356,\"\")","v":""}]
[{"$f":"IF(AND('Enter Company Names'!J357<>0,'Enter Company Names'!J357<>\"NA\"),'Enter Company Names'!J357,\"\")","v":""}]
[{"$f":"IF(AND('Enter Company Names'!J358<>0,'Enter Company Names'!J358<>\"NA\"),'Enter Company Names'!J358,\"\")","v":""}]
[{"$f":"IF(AND('Enter Company Names'!J359<>0,'Enter Company Names'!J359<>\"NA\"),'Enter Company Names'!J359,\"\")","v":""}]
[{"$f":"IF(AND('Enter Company Names'!J360<>0,'Enter Company Names'!J360<>\"NA\"),'Enter Company Names'!J360,\"\")","v":""}]
[{"$f":"IF(AND('Enter Company Names'!J361<>0,'Enter Company Names'!J361<>\"NA\"),'Enter Company Names'!J361,\"\")","v":""}]
[{"$f":"IF(AND('Enter Company Names'!J362<>0,'Enter Company Names'!J362<>\"NA\"),'Enter Company Names'!J362,\"\")","v":""}]
[{"$f":"IF(AND('Enter Company Names'!J363<>0,'Enter Company Names'!J363<>\"NA\"),'Enter Company Names'!J363,\"\")","v":""}]
[{"$f":"IF(AND('Enter Company Names'!J364<>0,'Enter Company Names'!J364<>\"NA\"),'Enter Company Names'!J364,\"\")","v":""}]
[{"$f":"IF(AND('Enter Company Names'!J365<>0,'Enter Company Names'!J365<>\"NA\"),'Enter Company Names'!J365,\"\")","v":""}]
[{"$f":"IF(AND('Enter Company Names'!J366<>0,'Enter Company Names'!J366<>\"NA\"),'Enter Company Names'!J366,\"\")","v":""}]
[{"$f":"IF(AND('Enter Company Names'!J367<>0,'Enter Company Names'!J367<>\"NA\"),'Enter Company Names'!J367,\"\")","v":""}]
[{"$f":"IF(AND('Enter Company Names'!J368<>0,'Enter Company Names'!J368<>\"NA\"),'Enter Company Names'!J368,\"\")","v":""}]
[{"$f":"IF(AND('Enter Company Names'!J369<>0,'Enter Company Names'!J369<>\"NA\"),'Enter Company Names'!J369,\"\")","v":""}]
[{"$f":"IF(AND('Enter Company Names'!J370<>0,'Enter Company Names'!J370<>\"NA\"),'Enter Company Names'!J370,\"\")","v":""}]
[{"$f":"IF(AND('Enter Company Names'!J371<>0,'Enter Company Names'!J371<>\"NA\"),'Enter Company Names'!J371,\"\")","v":""}]
[{"$f":"IF(AND('Enter Company Names'!J372<>0,'Enter Company Names'!J372<>\"NA\"),'Enter Company Names'!J372,\"\")","v":""}]
[{"$f":"IF(AND('Enter Company Names'!J373<>0,'Enter Company Names'!J373<>\"NA\"),'Enter Company Names'!J373,\"\")","v":""}]
[{"$f":"IF(AND('Enter Company Names'!J374<>0,'Enter Company Names'!J374<>\"NA\"),'Enter Company Names'!J374,\"\")","v":""}]
[{"$f":"IF(AND('Enter Company Names'!J375<>0,'Enter Company Names'!J375<>\"NA\"),'Enter Company Names'!J375,\"\")","v":""}]
[{"$f":"IF(AND('Enter Company Names'!J376<>0,'Enter Company Names'!J376<>\"NA\"),'Enter Company Names'!J376,\"\")","v":""}]
[{"$f":"IF(AND('Enter Company Names'!J377<>0,'Enter Company Names'!J377<>\"NA\"),'Enter Company Names'!J377,\"\")","v":""}]
[{"$f":"IF(AND('Enter Company Names'!J378<>0,'Enter Company Names'!J378<>\"NA\"),'Enter Company Names'!J378,\"\")","v":""}]
[{"$f":"IF(AND('Enter Company Names'!J379<>0,'Enter Company Names'!J379<>\"NA\"),'Enter Company Names'!J379,\"\")","v":""}]
[{"$f":"IF(AND('Enter Company Names'!J380<>0,'Enter Company Names'!J380<>\"NA\"),'Enter Company Names'!J380,\"\")","v":""}]
[{"$f":"IF(AND('Enter Company Names'!J381<>0,'Enter Company Names'!J381<>\"NA\"),'Enter Company Names'!J381,\"\")","v":""}]
[{"$f":"IF(AND('Enter Company Names'!J382<>0,'Enter Company Names'!J382<>\"NA\"),'Enter Company Names'!J382,\"\")","v":""}]
[{"$f":"IF(AND('Enter Company Names'!J383<>0,'Enter Company Names'!J383<>\"NA\"),'Enter Company Names'!J383,\"\")","v":""}]
[{"$f":"IF(AND('Enter Company Names'!J384<>0,'Enter Company Names'!J384<>\"NA\"),'Enter Company Names'!J384,\"\")","v":""}]
[{"$f":"IF(AND('Enter Company Names'!J385<>0,'Enter Company Names'!J385<>\"NA\"),'Enter Company Names'!J385,\"\")","v":""}]
[{"$f":"IF(AND('Enter Company Names'!J386<>0,'Enter Company Names'!J386<>\"NA\"),'Enter Company Names'!J386,\"\")","v":""}]
[{"$f":"IF(AND('Enter Company Names'!J387<>0,'Enter Company Names'!J387<>\"NA\"),'Enter Company Names'!J387,\"\")","v":""}]
[{"$f":"IF(AND('Enter Company Names'!J388<>0,'Enter Company Names'!J388<>\"NA\"),'Enter Company Names'!J388,\"\")","v":""}]
[{"$f":"IF(AND('Enter Company Names'!J389<>0,'Enter Company Names'!J389<>\"NA\"),'Enter Company Names'!J389,\"\")","v":""}]
[{"$f":"IF(AND('Enter Company Names'!J390<>0,'Enter Company Names'!J390<>\"NA\"),'Enter Company Names'!J390,\"\")","v":""}]
[{"$f":"IF(AND('Enter Company Names'!J391<>0,'Enter Company Names'!J391<>\"NA\"),'Enter Company Names'!J391,\"\")","v":""}]
[{"$f":"IF(AND('Enter Company Names'!J392<>0,'Enter Company Names'!J392<>\"NA\"),'Enter Company Names'!J392,\"\")","v":""}]
[{"$f":"IF(AND('Enter Company Names'!J393<>0,'Enter Company Names'!J393<>\"NA\"),'Enter Company Names'!J393,\"\")","v":""}]
[{"$f":"IF(AND('Enter Company Names'!J394<>0,'Enter Company Names'!J394<>\"NA\"),'Enter Company Names'!J394,\"\")","v":""}]
[{"$f":"IF(AND('Enter Company Names'!J395<>0,'Enter Company Names'!J395<>\"NA\"),'Enter Company Names'!J395,\"\")","v":""}]
[{"$f":"IF(AND('Enter Company Names'!J396<>0,'Enter Company Names'!J396<>\"NA\"),'Enter Company Names'!J396,\"\")","v":""}]
[{"$f":"IF(AND('Enter Company Names'!J397<>0,'Enter Company Names'!J397<>\"NA\"),'Enter Company Names'!J397,\"\")","v":""}]
[{"$f":"IF(AND('Enter Company Names'!J398<>0,'Enter Company Names'!J398<>\"NA\"),'Enter Company Names'!J398,\"\")","v":""}]
[{"$f":"IF(AND('Enter Company Names'!J399<>0,'Enter Company Names'!J399<>\"NA\"),'Enter Company Names'!J399,\"\")","v":""}]
[{"$f":"IF(AND('Enter Company Names'!J400<>0,'Enter Company Names'!J400<>\"NA\"),'Enter Company Names'!J400,\"\")","v":""}]
[{"$f":"IF(AND('Enter Company Names'!J401<>0,'Enter Company Names'!J401<>\"NA\"),'Enter Company Names'!J401,\"\")","v":""}]
[{"$f":"IF(AND('Enter Company Names'!J402<>0,'Enter Company Names'!J402<>\"NA\"),'Enter Company Names'!J402,\"\")","v":""}]
[{"$f":"IF(AND('Enter Company Names'!J403<>0,'Enter Company Names'!J403<>\"NA\"),'Enter Company Names'!J403,\"\")","v":""}]
[{"$f":"IF(AND('Enter Company Names'!J404<>0,'Enter Company Names'!J404<>\"NA\"),'Enter Company Names'!J404,\"\")","v":""}]
[{"$f":"IF(AND('Enter Company Names'!J405<>0,'Enter Company Names'!J405<>\"NA\"),'Enter Company Names'!J405,\"\")","v":""}]
[{"$f":"IF(AND('Enter Company Names'!J406<>0,'Enter Company Names'!J406<>\"NA\"),'Enter Company Names'!J406,\"\")","v":""}]
[{"$f":"IF(AND('Enter Company Names'!J407<>0,'Enter Company Names'!J407<>\"NA\"),'Enter Company Names'!J407,\"\")","v":""}]
[{"$f":"IF(AND('Enter Company Names'!J408<>0,'Enter Company Names'!J408<>\"NA\"),'Enter Company Names'!J408,\"\")","v":""}]
[{"$f":"IF(AND('Enter Company Names'!J409<>0,'Enter Company Names'!J409<>\"NA\"),'Enter Company Names'!J409,\"\")","v":""}]
[{"$f":"IF(AND('Enter Company Names'!J410<>0,'Enter Company Names'!J410<>\"NA\"),'Enter Company Names'!J410,\"\")","v":""}]
[{"$f":"IF(AND('Enter Company Names'!J411<>0,'Enter Company Names'!J411<>\"NA\"),'Enter Company Names'!J411,\"\")","v":""}]
[{"$f":"IF(AND('Enter Company Names'!J412<>0,'Enter Company Names'!J412<>\"NA\"),'Enter Company Names'!J412,\"\")","v":""}]
[{"$f":"IF(AND('Enter Company Names'!J413<>0,'Enter Company Names'!J413<>\"NA\"),'Enter Company Names'!J413,\"\")","v":""}]
[{"$f":"IF(AND('Enter Company Names'!J414<>0,'Enter Company Names'!J414<>\"NA\"),'Enter Company Names'!J414,\"\")","v":""}]
[{"$f":"IF(AND('Enter Company Names'!J415<>0,'Enter Company Names'!J415<>\"NA\"),'Enter Company Names'!J415,\"\")","v":""}]
[{"$f":"IF(AND('Enter Company Names'!J416<>0,'Enter Company Names'!J416<>\"NA\"),'Enter Company Names'!J416,\"\")","v":""}]
[{"$f":"IF(AND('Enter Company Names'!J417<>0,'Enter Company Names'!J417<>\"NA\"),'Enter Company Names'!J417,\"\")","v":""}]
[{"$f":"IF(AND('Enter Company Names'!J418<>0,'Enter Company Names'!J418<>\"NA\"),'Enter Company Names'!J418,\"\")","v":""}]
[{"$f":"IF(AND('Enter Company Names'!J419<>0,'Enter Company Names'!J419<>\"NA\"),'Enter Company Names'!J419,\"\")","v":""}]
[{"$f":"IF(AND('Enter Company Names'!J420<>0,'Enter Company Names'!J420<>\"NA\"),'Enter Company Names'!J420,\"\")","v":""}]
[{"$f":"IF(AND('Enter Company Names'!J421<>0,'Enter Company Names'!J421<>\"NA\"),'Enter Company Names'!J421,\"\")","v":""}]
[{"$f":"IF(AND('Enter Company Names'!J422<>0,'Enter Company Names'!J422<>\"NA\"),'Enter Company Names'!J422,\"\")","v":""}]
[{"$f":"IF(AND('Enter Company Names'!J423<>0,'Enter Company Names'!J423<>\"NA\"),'Enter Company Names'!J423,\"\")","v":""}]
[{"$f":"IF(AND('Enter Company Names'!J424<>0,'Enter Company Names'!J424<>\"NA\"),'Enter Company Names'!J424,\"\")","v":""}]
[{"$f":"IF(AND('Enter Company Names'!J425<>0,'Enter Company Names'!J425<>\"NA\"),'Enter Company Names'!J425,\"\")","v":""}]
[{"$f":"IF(AND('Enter Company Names'!J426<>0,'Enter Company Names'!J426<>\"NA\"),'Enter Company Names'!J426,\"\")","v":""}]
[{"$f":"IF(AND('Enter Company Names'!J427<>0,'Enter Company Names'!J427<>\"NA\"),'Enter Company Names'!J427,\"\")","v":""}]
[{"$f":"IF(AND('Enter Company Names'!J428<>0,'Enter Company Names'!J428<>\"NA\"),'Enter Company Names'!J428,\"\")","v":""}]
[{"$f":"IF(AND('Enter Company Names'!J429<>0,'Enter Company Names'!J429<>\"NA\"),'Enter Company Names'!J429,\"\")","v":""}]
[{"$f":"IF(AND('Enter Company Names'!J430<>0,'Enter Company Names'!J430<>\"NA\"),'Enter Company Names'!J430,\"\")","v":""}]
[null,{"$f":"IF(AND('Enter Company Names'!J431<>0,'Enter Company Names'!J431<>\"NA\"),'Enter Company Names'!J431,\"\")","v":""}]
[null,{"$f":"IF(AND('Enter Company Names'!J432<>0,'Enter Company Names'!J432<>\"NA\"),'Enter Company Names'!J432,\"\")","v":""}]
[null,{"$f":"IF(AND('Enter Company Names'!J433<>0,'Enter Company Names'!J433<>\"NA\"),'Enter Company Names'!J433,\"\")","v":""}]
[null,{"$f":"IF(AND('Enter Company Names'!J434<>0,'Enter Company Names'!J434<>\"NA\"),'Enter Company Names'!J434,\"\")","v":""}]
[null,{"$f":"IF(AND('Enter Company Names'!J435<>0,'Enter Company Names'!J435<>\"NA\"),'Enter Company Names'!J435,\"\")","v":""}]
[null,{"$f":"IF(AND('Enter Company Names'!J436<>0,'Enter Company Names'!J436<>\"NA\"),'Enter Company Names'!J436,\"\")","v":""}]
[null,{"$f":"IF(AND('Enter Company Names'!J437<>0,'Enter Company Names'!J437<>\"NA\"),'Enter Company Names'!J437,\"\")","v":""}]
[null,{"$f":"IF(AND('Enter Company Names'!J438<>0,'Enter Company Names'!J438<>\"NA\"),'Enter Company Names'!J438,\"\")","v":""}]
[null,{"$f":"IF(AND('Enter Company Names'!J439<>0,'Enter Company Names'!J439<>\"NA\"),'Enter Company Names'!J439,\"\")","v":""}]
[null,{"$f":"IF(AND('Enter Company Names'!J440<>0,'Enter Company Names'!J440<>\"NA\"),'Enter Company Names'!J440,\"\")","v":""}]
[null,{"$f":"IF(AND('Enter Company Names'!J441<>0,'Enter Company Names'!J441<>\"NA\"),'Enter Company Names'!J441,\"\")","v":""}]
[null,{"$f":"IF(AND('Enter Company Names'!J442<>0,'Enter Company Names'!J442<>\"NA\"),'Enter Company Names'!J442,\"\")","v":""}]
[null,{"$f":"IF(AND('Enter Company Names'!J443<>0,'Enter Company Names'!J443<>\"NA\"),'Enter Company Names'!J443,\"\")","v":""}]
[null,{"$f":"IF(AND('Enter Company Names'!J444<>0,'Enter Company Names'!J444<>\"NA\"),'Enter Company Names'!J444,\"\")","v":""}]
[null,{"$f":"IF(AND('Enter Company Names'!J445<>0,'Enter Company Names'!J445<>\"NA\"),'Enter Company Names'!J445,\"\")","v":""}]
[null,{"$f":"IF(AND('Enter Company Names'!J446<>0,'Enter Company Names'!J446<>\"NA\"),'Enter Company Names'!J446,\"\")","v":""}]
[null,{"$f":"IF(AND('Enter Company Names'!J447<>0,'Enter Company Names'!J447<>\"NA\"),'Enter Company Names'!J447,\"\")","v":""}]
[null,{"$f":"IF(AND('Enter Company Names'!J448<>0,'Enter Company Names'!J448<>\"NA\"),'Enter Company Names'!J448,\"\")","v":""}]
[null,{"$f":"IF(AND('Enter Company Names'!J449<>0,'Enter Company Names'!J449<>\"NA\"),'Enter Company Names'!J449,\"\")","v":""}]
[null,{"$f":"IF(AND('Enter Company Names'!J450<>0,'Enter Company Names'!J450<>\"NA\"),'Enter Company Names'!J450,\"\")","v":""}]
[null,{"$f":"IF(AND('Enter Company Names'!J451<>0,'Enter Company Names'!J451<>\"NA\"),'Enter Company Names'!J451,\"\")","v":""}]
[null,{"$f":"IF(AND('Enter Company Names'!J452<>0,'Enter Company Names'!J452<>\"NA\"),'Enter Company Names'!J452,\"\")","v":""}]
[null,{"$f":"IF(AND('Enter Company Names'!J453<>0,'Enter Company Names'!J453<>\"NA\"),'Enter Company Names'!J453,\"\")","v":""}]
[null,{"$f":"IF(AND('Enter Company Names'!J454<>0,'Enter Company Names'!J454<>\"NA\"),'Enter Company Names'!J454,\"\")","v":""}]
[null,{"$f":"IF(AND('Enter Company Names'!J455<>0,'Enter Company Names'!J455<>\"NA\"),'Enter Company Names'!J455,\"\")","v":""}]
[null,{"$f":"IF(AND('Enter Company Names'!J456<>0,'Enter Company Names'!J456<>\"NA\"),'Enter Company Names'!J456,\"\")","v":""}]
[null,{"$f":"IF(AND('Enter Company Names'!J457<>0,'Enter Company Names'!J457<>\"NA\"),'Enter Company Names'!J457,\"\")","v":""}]
[null,{"$f":"IF(AND('Enter Company Names'!J458<>0,'Enter Company Names'!J458<>\"NA\"),'Enter Company Names'!J458,\"\")","v":""}]
[null,{"$f":"IF(AND('Enter Company Names'!J459<>0,'Enter Company Names'!J459<>\"NA\"),'Enter Company Names'!J459,\"\")","v":""}]
[null,{"$f":"IF(AND('Enter Company Names'!J460<>0,'Enter Company Names'!J460<>\"NA\"),'Enter Company Names'!J460,\"\")","v":""}]
[null,{"$f":"IF(AND('Enter Company Names'!J461<>0,'Enter Company Names'!J461<>\"NA\"),'Enter Company Names'!J461,\"\")","v":""}]
[null,{"$f":"IF(AND('Enter Company Names'!J462<>0,'Enter Company Names'!J462<>\"NA\"),'Enter Company Names'!J462,\"\")","v":""}]
[null,{"$f":"IF(AND('Enter Company Names'!J463<>0,'Enter Company Names'!J463<>\"NA\"),'Enter Company Names'!J463,\"\")","v":""}]
[null,{"$f":"IF(AND('Enter Company Names'!J464<>0,'Enter Company Names'!J464<>\"NA\"),'Enter Company Names'!J464,\"\")","v":""}]
[null,{"$f":"IF(AND('Enter Company Names'!J465<>0,'Enter Company Names'!J465<>\"NA\"),'Enter Company Names'!J465,\"\")","v":""}]
[null,{"$f":"IF(AND('Enter Company Names'!J466<>0,'Enter Company Names'!J466<>\"NA\"),'Enter Company Names'!J466,\"\")","v":""}]
[null,{"$f":"IF(AND('Enter Company Names'!J467<>0,'Enter Company Names'!J467<>\"NA\"),'Enter Company Names'!J467,\"\")","v":""}]
[null,{"$f":"IF(AND('Enter Company Names'!J468<>0,'Enter Company Names'!J468<>\"NA\"),'Enter Company Names'!J468,\"\")","v":""}]
[null,{"$f":"IF(AND('Enter Company Names'!J469<>0,'Enter Company Names'!J469<>\"NA\"),'Enter Company Names'!J469,\"\")","v":""}]
[null,{"$f":"IF(AND('Enter Company Names'!J470<>0,'Enter Company Names'!J470<>\"NA\"),'Enter Company Names'!J470,\"\")","v":""}]
[null,{"$f":"IF(AND('Enter Company Names'!J471<>0,'Enter Company Names'!J471<>\"NA\"),'Enter Company Names'!J471,\"\")","v":""}]
[null,{"$f":"IF(AND('Enter Company Names'!J472<>0,'Enter Company Names'!J472<>\"NA\"),'Enter Company Names'!J472,\"\")","v":""}]
[null,{"$f":"IF(AND('Enter Company Names'!J473<>0,'Enter Company Names'!J473<>\"NA\"),'Enter Company Names'!J473,\"\")","v":""}]
[null,{"$f":"IF(AND('Enter Company Names'!J474<>0,'Enter Company Names'!J474<>\"NA\"),'Enter Company Names'!J474,\"\")","v":""}]
[null,{"$f":"IF(AND('Enter Company Names'!J475<>0,'Enter Company Names'!J475<>\"NA\"),'Enter Company Names'!J475,\"\")","v":""}]
[null,{"$f":"IF(AND('Enter Company Names'!J476<>0,'Enter Company Names'!J476<>\"NA\"),'Enter Company Names'!J476,\"\")","v":""}]
[null,{"$f":"IF(AND('Enter Company Names'!J477<>0,'Enter Company Names'!J477<>\"NA\"),'Enter Company Names'!J477,\"\")","v":""}]
[null,{"$f":"IF(AND('Enter Company Names'!J478<>0,'Enter Company Names'!J478<>\"NA\"),'Enter Company Names'!J478,\"\")","v":""}]
[null,{"$f":"IF(AND('Enter Company Names'!J479<>0,'Enter Company Names'!J479<>\"NA\"),'Enter Company Names'!J479,\"\")","v":""}]
[null,{"$f":"IF(AND('Enter Company Names'!J480<>0,'Enter Company Names'!J480<>\"NA\"),'Enter Company Names'!J480,\"\")","v":""}]
[null,{"$f":"IF(AND('Enter Company Names'!J481<>0,'Enter Company Names'!J481<>\"NA\"),'Enter Company Names'!J481,\"\")","v":""}]
[null,{"$f":"IF(AND('Enter Company Names'!J482<>0,'Enter Company Names'!J482<>\"NA\"),'Enter Company Names'!J482,\"\")","v":""}]
[null,{"$f":"IF(AND('Enter Company Names'!J483<>0,'Enter Company Names'!J483<>\"NA\"),'Enter Company Names'!J483,\"\")","v":""}]
[null,{"$f":"IF(AND('Enter Company Names'!J484<>0,'Enter Company Names'!J484<>\"NA\"),'Enter Company Names'!J484,\"\")","v":""}]
[null,{"$f":"IF(AND('Enter Company Names'!J485<>0,'Enter Company Names'!J485<>\"NA\"),'Enter Company Names'!J485,\"\")","v":""}]
[null,{"$f":"IF(AND('Enter Company Names'!J486<>0,'Enter Company Names'!J486<>\"NA\"),'Enter Company Names'!J486,\"\")","v":""}]
[null,{"$f":"IF(AND('Enter Company Names'!J487<>0,'Enter Company Names'!J487<>\"NA\"),'Enter Company Names'!J487,\"\")","v":""}]
[null,{"$f":"IF(AND('Enter Company Names'!J488<>0,'Enter Company Names'!J488<>\"NA\"),'Enter Company Names'!J488,\"\")","v":""}]
[null,{"$f":"IF(AND('Enter Company Names'!J489<>0,'Enter Company Names'!J489<>\"NA\"),'Enter Company Names'!J489,\"\")","v":""}]
[null,{"$f":"IF(AND('Enter Company Names'!J490<>0,'Enter Company Names'!J490<>\"NA\"),'Enter Company Names'!J490,\"\")","v":""}]
[null,{"$f":"IF(AND('Enter Company Names'!J491<>0,'Enter Company Names'!J491<>\"NA\"),'Enter Company Names'!J491,\"\")","v":""}]
[null,{"$f":"IF(AND('Enter Company Names'!J492<>0,'Enter Company Names'!J492<>\"NA\"),'Enter Company Names'!J492,\"\")","v":""}]
[null,{"$f":"IF(AND('Enter Company Names'!J493<>0,'Enter Company Names'!J493<>\"NA\"),'Enter Company Names'!J493,\"\")","v":""}]
[null,{"$f":"IF(AND('Enter Company Names'!J494<>0,'Enter Company Names'!J494<>\"NA\"),'Enter Company Names'!J494,\"\")","v":""}]
[null,{"$f":"IF(AND('Enter Company Names'!J495<>0,'Enter Company Names'!J495<>\"NA\"),'Enter Company Names'!J495,\"\")","v":""}]
[null,{"$f":"IF(AND('Enter Company Names'!J496<>0,'Enter Company Names'!J496<>\"NA\"),'Enter Company Names'!J496,\"\")","v":""}]
[null,{"$f":"IF(AND('Enter Company Names'!J497<>0,'Enter Company Names'!J497<>\"NA\"),'Enter Company Names'!J497,\"\")","v":""}]
[null,{"$f":"IF(AND('Enter Company Names'!J498<>0,'Enter Company Names'!J498<>\"NA\"),'Enter Company Names'!J498,\"\")","v":""}]
[null,{"$f":"IF(AND('Enter Company Names'!J499<>0,'Enter Company Names'!J499<>\"NA\"),'Enter Company Names'!J499,\"\")","v":""}]
[null,{"$f":"IF(AND('Enter Company Names'!J500<>0,'Enter Company Names'!J500<>\"NA\"),'Enter Company Names'!J500,\"\")","v":""}]

{"sheet":"SASB Score Overview","index":3,"n_rows":430,"n_cols":7,"rows_kept":430,"cut":false,"hidden":false,"merged":[]}
[]
[]
[]
["Instructions for SASB-Auto Industry Calculator (Continued)"]
["1. The company names will pull from Enter Company Names sheet."]
["2. Click \"Calculate\" to update CSRHub scores applied to SASB-Auto indutry topics."]
[]
[]
[{"$f":"\"For \"&A15&\"\"","v":"For Tesla Motors, Inc."},null,"Materials Efficiency & Recycling ","Product Safety","Labor Practices (Labor Relations)","Fuel Economy and Use-phase Emissions","Materials Sourcing (including critical materials)"]
["Average Rating",null,{"$f":"AVERAGEIF(C16:C215,\"<>0\")","v":60.526649999999997},{"$f":"AVERAGEIF(D16:D215,\"<>0\")","v":57.391200000000005},{"$f":"AVERAGEIF(E16:E215,\"<>0\")","v":56.903749999999988},{"$f":"AVERAGEIF(F16:F215,\"<>0\")","v":59.197350000000007},{"$f":"AVERAGEIF(G16:G215,\"<>0\")","v":59.207950000000004}]
["Best Rating",null,{"$f":"MAX(C16:C212)","v":64.02},{"$f":"MAX(D16:D212)","v":74.487499999999997},{"$f":"MAX(E16:E212)","v":74.325400000000002},61.732999999999997,61.944499999999998]
["Worst Rating",null,{"$f":"MIN(IF(C16:C212>0,C16:C212))","v":51.401000000000003},{"$f":"MIN(IF(D16:D212>0,D16:D212))","v":51.45450000000001},{"$f":"MIN(IF(E16:E212>0,E16:E212))","v":50.8521},{"$f":"MIN(IF(F16:F212>0,F16:F212))","v":51.183000000000007},{"$f":"MIN(IF(G16:G212>0,G16:G212))","v":54.933000000000007}]
[]
["Company Name",null,{"$f":"'SASB Mapping'!$B15","v":"Materials Efficiency and Recycling"},{"$f":"'SASB Mapping'!$B16","v":"Product Safety"},{"$f":"'SASB Mapping'!$B17","v":"Labor Relations"},{"$f":"'SASB Mapping'!$B18","v":"Fuel Economy and Use-phase Emissions"},{"$f":"'SASB Mapping'!$B19","v":"Materials Sourcing (including critical materials)"}]
[{"$f":"'CSRHub Ratings'!B15","v":"Tesla Motors, Inc."},null,{"$f":"SUMPRODUCT('CSRHub Ratings'!$C15:$N15,'SASB Mapping'!$C$15:'SASB Mapping'!$N$15)","v":49.656999999999996},{"$f":"SUMPRODUCT('CSRHub Ratings'!$C15:$N15,'SASB Mapping'!$C$16:'SASB Mapping'!$N$16)","v":48.621999999999993},{"$f":"SUMPRODUCT('CSRHub Ratings'!$C15:$N15,'SASB Mapping'!$C$17:'SASB Mapping'!$N$17)","v":45.0184},{"$f":"SUMPRODUCT('CSRHub Ratings'!$C15:$N15,'SASB Mapping'!$C$18:'SASB Mapping'!$N$18)","v":50.12},{"$f":"SUMPRODUCT('CSRHub Ratings'!$C15:$N15,'SASB Mapping'!$C$19:'SASB Mapping'!$N$19)","v":49.145499999999998}]
[{"$f":"'CSRHub Ratings'!B16","v":"Audi AG"},null,{"$f":"SUMPRODUCT('CSRHub Ratings'!$C16:$N16,'SASB Mapping'!$C$15:'SASB Mapping'!$N$15)","v":59.948999999999998},{"$f":"SUMPRODUCT('CSRHub Ratings'!$C16:$N16,'SASB Mapping'!$C$16:'SASB Mapping'!$N$16)","v":74.487499999999997},{"$f":"SUMPRODUCT('CSRHub Ratings'!$C16:$N16,'SASB Mapping'!$C$17:'SASB Mapping'!$N$17)","v":74.325400000000002},{"$f":"SUMPRODUCT('CSRHub Ratings'!$C16:$N16,'SASB Mapping'!$C$18:'SASB Mapping'!$N$18)","v":61.732999999999997},{"$f":"SUMPRODUCT('CSRHub Ratings'!$C16:$N16,'SASB Mapping'!$C$19:'SASB Mapping'!$N$19)","v":58.349000000000004}]
[{"$f":"'CSRHub Ratings'!B17","v":"BMW"},null,{"$f":"SUMPRODUCT('CSRHub Ratings'!$C17:$N17,'SASB Mapping'!$C$15:'SASB Mapping'!$N$15)","v":61.806000000000004},{"$f":"SUMPRODUCT('CSRHub Ratings'!$C17:$N17,'SASB Mapping'!$C$16:'SASB Mapping'!$N$16)","v":55.920499999999997},{"$f":"SUMPRODUCT('CSRHub Ratings'!$C17:$N17,'SASB Mapping'!$C$17:'SASB Mapping'!$N$17)","v":55.191300000000005},{"$f":"SUMPRODUCT('CSRHub Ratings'!$C17:$N17,'SASB Mapping'!$C$18:'SASB Mapping'!$N$18)","v":60.462500000000006},{"$f":"SUMPRODUCT('CSRHub Ratings'!$C17:$N17,'SASB Mapping'!$C$19:'SASB Mapping'!$N$19)","v":59.626000000000005}]
[{"$f":"'CSRHub Ratings'!B18","v":"Ford Motor Company"},null,{"$f":"SUMPRODUCT('CSRHub Ratings'!$C18:$N18,'SASB Mapping'!$C$15:'SASB Mapping'!$N$15)","v":62.648500000000013},{"$f":"SUMPRODUCT('CSRHub Ratings'!$C18:$N18,'SASB Mapping'!$C$16:'SASB Mapping'!$N$16)","v":54.3765},{"$f":"SUMPRODUCT('CSRHub Ratings'!$C18:$N18,'SASB Mapping'!$C$17:'SASB Mapping'!$N$17)","v":54.631399999999985},{"$f":"SUMPRODUCT('CSRHub Ratings'!$C18:$N18,'SASB Mapping'!$C$18:'SASB Mapping'!$N$18)","v":61.309999999999995},{"$f":"SUMPRODUCT('CSRHub Ratings'!$C18:$N18,'SASB Mapping'!$C$19:'SASB Mapping'!$N$19)","v":61.547500000000007}]
[{"$f":"'CSRHub Ratings'!B19","v":"HONDA MOTOR CO.,LTD."},null,{"$f":"SUMPRODUCT('CSRHub Ratings'!$C19:$N19,'SASB Mapping'!$C$15:'SASB Mapping'!$N$15)","v":64.02},{"$f":"SUMPRODUCT('CSRHub Ratings'!$C19:$N19,'SASB Mapping'!$C$16:'SASB Mapping'!$N$16)","v":57.226500000000001},{"$f":"SUMPRODUCT('CSRHub Ratings'!$C19:$N19,'SASB Mapping'!$C$17:'SASB Mapping'!$N$17)","v":56.900100000000002},{"$f":"SUMPRODUCT('CSRHub Ratings'!$C19:$N19,'SASB Mapping'!$C$18:'SASB Mapping'!$N$18)","v":60.9465},{"$f":"SUMPRODUCT('CSRHub Ratings'!$C19:$N19,'SASB Mapping'!$C$19:'SASB Mapping'!$N$19)","v":61.944499999999998}]
[{"$f":"'CSRHub Ratings'!B20","v":"General Motors Corporation (GM)"},null,{"$f":"SUMPRODUCT('CSRHub Ratings'!$C20:$N20,'SASB Mapping'!$C$15:'SASB Mapping'!$N$15)","v":59.538499999999999},{"$f":"SUMPRODUCT('CSRHub Ratings'!$C20:$N20,'SASB Mapping'!$C$16:'SASB Mapping'!$N$16)","v":55.240500000000004},{"$f":"SUMPRODUCT('CSRHub Ratings'!$C20:$N20,'SASB Mapping'!$C$17:'SASB Mapping'!$N$17)","v":56.48960000000001},{"$f":"SUMPRODUCT('CSRHub Ratings'!$C20:$N20,'SASB Mapping'!$C$18:'SASB Mapping'!$N$18)","v":58.143999999999998},{"$f":"SUMPRODUCT('CSRHub Ratings'!$C20:$N20,'SASB Mapping'!$C$19:'SASB Mapping'!$N$19)","v":58.57350000000001}]
[{"$f":"'CSRHub Ratings'!B21","v":"Hyundai Motor Co."},null,{"$f":"SUMPRODUCT('CSRHub Ratings'!$C21:$N21,'SASB Mapping'!$C$15:'SASB Mapping'!$N$15)","v":63.691999999999993},{"$f":"SUMPRODUCT('CSRHub Ratings'!$C21:$N21,'SASB Mapping'!$C$16:'SASB Mapping'!$N$16)","v":58.509499999999996},{"$f":"SUMPRODUCT('CSRHub Ratings'!$C21:$N21,'SASB Mapping'!$C$17:'SASB Mapping'!$N$17)","v":56.905699999999996},{"$f":"SUMPRODUCT('CSRHub Ratings'!$C21:$N21,'SASB Mapping'!$C$18:'SASB Mapping'!$N$18)","v":60.792999999999999},{"$f":"SUMPRODUCT('CSRHub Ratings'!$C21:$N21,'SASB Mapping'!$C$19:'SASB Mapping'!$N$19)","v":61.085500000000003}]
[{"$f":"'CSRHub Ratings'!B22","v":"Porsche AG"},null,{"$f":"SUMPRODUCT('CSRHub Ratings'!$C22:$N22,'SASB Mapping'!$C$15:'SASB Mapping'!$N$15)","v":51.401000000000003},{"$f":"SUMPRODUCT('CSRHub Ratings'!$C22:$N22,'SASB Mapping'!$C$16:'SASB Mapping'!$N$16)","v":51.45450000000001},{"$f":"SUMPRODUCT('CSRHub Ratings'!$C22:$N22,'SASB Mapping'!$C$17:'SASB Mapping'!$N$17)","v":51.938399999999994},{"$f":"SUMPRODUCT('CSRHub Ratings'!$C22:$N22,'SASB Mapping'!$C$18:'SASB Mapping'!$N$18)","v":51.183000000000007},{"$f":"SUMPRODUCT('CSRHub Ratings'!$C22:$N22,'SASB Mapping'!$C$19:'SASB Mapping'!$N$19)","v":54.933000000000007}]
[{"$f":"'CSRHub Ratings'!B23","v":"Volkswagen AG"},null,{"$f":"SUMPRODUCT('CSRHub Ratings'!$C23:$N23,'SASB Mapping'!$C$15:'SASB Mapping'!$N$15)","v":59.703500000000005},{"$f":"SUMPRODUCT('CSRHub Ratings'!$C23:$N23,'SASB Mapping'!$C$16:'SASB Mapping'!$N$16)","v":55.307999999999993},{"$f":"SUMPRODUCT('CSRHub Ratings'!$C23:$N23,'SASB Mapping'!$C$17:'SASB Mapping'!$N$17)","v":50.8521},{"$f":"SUMPRODUCT('CSRHub Ratings'!$C23:$N23,'SASB Mapping'!$C$18:'SASB Mapping'!$N$18)","v":57.432499999999997},{"$f":"SUMPRODUCT('CSRHub Ratings'!$C23:$N23,'SASB Mapping'!$C$19:'SASB Mapping'!$N$19)","v":56.795999999999999}]
[{"$f":"'CSRHub Ratings'!B24","v":"SUBARU CORPORATION"},null,{"$f":"SUMPRODUCT('CSRHub Ratings'!$C24:$N24,'SASB Mapping'!$C$15:'SASB Mapping'!$N$15)","v":59.43},{"$f":"SUMPRODUCT('CSRHub Ratings'!$C24:$N24,'SASB Mapping'!$C$16:'SASB Mapping'!$N$16)","v":55.077999999999996},{"$f":"SUMPRODUCT('CSRHub Ratings'!$C24:$N24,'SASB Mapping'!$C$17:'SASB Mapping'!$N$17)","v":55.880300000000005},{"$f":"SUMPRODUCT('CSRHub Ratings'!$C24:$N24,'SASB Mapping'!$C$18:'SASB Mapping'!$N$18)","v":58.858999999999995},{"$f":"SUMPRODUCT('CSRHub Ratings'!$C24:$N24,'SASB Mapping'!$C$19:'SASB Mapping'!$N$19)","v":59.364000000000004}]
[{"$f":"'CSRHub Ratings'!B25","v":"TOYOTA MOTOR CORPORATION"},null,{"$f":"SUMPRODUCT('CSRHub Ratings'!$C25:$N25,'SASB Mapping'!$C$15:'SASB Mapping'!$N$15)","v":63.077999999999996},{"$f":"SUMPRODUCT('CSRHub Ratings'!$C25:$N25,'SASB Mapping'!$C$16:'SASB Mapping'!$N$16)","v":56.31049999999999},{"$f":"SUMPRODUCT('CSRHub Ratings'!$C25:$N25,'SASB Mapping'!$C$17:'SASB Mapping'!$N$17)","v":55.923199999999994},{"$f":"SUMPRODUCT('CSRHub Ratings'!$C25:$N25,'SASB Mapping'!$C$18:'SASB Mapping'!$N$18)","v":61.11},{"$f":"SUMPRODUCT('CSRHub Ratings'!$C25:$N25,'SASB Mapping'!$C$19:'SASB Mapping'!$N$19)","v":59.860500000000002}]
[{"$f":"'CSRHub Ratings'!A26","v":""}]
[{"$f":"'CSRHub Ratings'!A27","v":""}]
[{"$f":"'CSRHub Ratings'!A28","v":""}]
[{"$f":"'CSRHub Ratings'!A29","v":""}]
[{"$f":"'CSRHub Ratings'!A30","v":""}]
[{"$f":"'CSRHub Ratings'!A31","v":""}]
[{"$f":"'CSRHub Ratings'!A32","v":""}]
[{"$f":"'CSRHub Ratings'!A33","v":""}]
[{"$f":"'CSRHub Ratings'!A34","v":""}]
[{"$f":"'CSRHub Ratings'!A35","v":""}]
[{"$f":"'CSRHub Ratings'!A36","v":""}]
[{"$f":"'CSRHub Ratings'!A37","v":""}]
[{"$f":"'CSRHub Ratings'!A38","v":""}]
[{"$f":"'CSRHub Ratings'!A39","v":""}]
[{"$f":"'CSRHub Ratings'!A40","v":""}]
[{"$f":"'CSRHub Ratings'!A41","v":""}]
[{"$f":"'CSRHub Ratings'!A42","v":""}]
[{"$f":"'CSRHub Ratings'!A43","v":""}]
[{"$f":"'CSRHub Ratings'!A44","v":""}]
[{"$f":"'CSRHub Ratings'!A45","v":""}]
[{"$f":"'CSRHub Ratings'!A46","v":""}]
[{"$f":"'CSRHub Ratings'!A47","v":""}]
[{"$f":"'CSRHub Ratings'!A48","v":""}]
[{"$f":"'CSRHub Ratings'!A49","v":""}]
[{"$f":"'CSRHub Ratings'!A50","v":""}]
[{"$f":"'CSRHub Ratings'!A51","v":""}]
[{"$f":"'CSRHub Ratings'!A52","v":""}]
[{"$f":"'CSRHub Ratings'!A53","v":""}]
[{"$f":"'CSRHub Ratings'!A54","v":""}]
[{"$f":"'CSRHub Ratings'!A55","v":""}]
[{"$f":"'CSRHub Ratings'!A56","v":""}]
[{"$f":"'CSRHub Ratings'!A57","v":""}]
[{"$f":"'CSRHub Ratings'!A58","v":""}]
[{"$f":"'CSRHub Ratings'!A59","v":""}]
[{"$f":"'CSRHub Ratings'!A60","v":""}]
[{"$f":"'CSRHub Ratings'!A61","v":""}]
[{"$f":"'CSRHub Ratings'!A62","v":""}]
[{"$f":"'CSRHub Ratings'!A63","v":""}]
[{"$f":"'CSRHub Ratings'!A64","v":""}]
[{"$f":"'CSRHub Ratings'!A65","v":""}]
[{"$f":"'CSRHub Ratings'!A66","v":""}]
[{"$f":"'CSRHub Ratings'!A67","v":""}]
[{"$f":"'CSRHub Ratings'!A68","v":""}]
[{"$f":"'CSRHub Ratings'!A69","v":""}]
[{"$f":"'CSRHub Ratings'!A70","v":""}]
[{"$f":"'CSRHub Ratings'!A71","v":""}]
[{"$f":"'CSRHub Ratings'!A72","v":""}]
[{"$f":"'CSRHub Ratings'!A73","v":""}]
[{"$f":"'CSRHub Ratings'!A74","v":""}]
[{"$f":"'CSRHub Ratings'!A75","v":""}]
[{"$f":"'CSRHub Ratings'!A76","v":""}]
[{"$f":"'CSRHub Ratings'!A77","v":""}]
[{"$f":"'CSRHub Ratings'!A78","v":""}]
[{"$f":"'CSRHub Ratings'!A79","v":""}]
[{"$f":"'CSRHub Ratings'!A80","v":""}]
[{"$f":"'CSRHub Ratings'!A81","v":""}]
[{"$f":"'CSRHub Ratings'!A82","v":""}]
[{"$f":"'CSRHub Ratings'!A83","v":""}]
[{"$f":"'CSRHub Ratings'!A84","v":""}]
[{"$f":"'CSRHub Ratings'!A85","v":""}]
[{"$f":"'CSRHub Ratings'!A86","v":""}]
[{"$f":"'CSRHub Ratings'!A87","v":""}]
[{"$f":"'CSRHub Ratings'!A88","v":""}]
[{"$f":"'CSRHub Ratings'!A89","v":""}]
[{"$f":"'CSRHub Ratings'!A90","v":""}]
[{"$f":"'CSRHub Ratings'!A91","v":""}]
[{"$f":"'CSRHub Ratings'!A92","v":""}]
[{"$f":"'CSRHub Ratings'!A93","v":""}]
[{"$f":"'CSRHub Ratings'!A94","v":""}]
[{"$f":"'CSRHub Ratings'!A95","v":""}]
[{"$f":"'CSRHub Ratings'!A96","v":""}]
[{"$f":"'CSRHub Ratings'!A97","v":""}]
[{"$f":"'CSRHub Ratings'!A98","v":""}]
[{"$f":"'CSRHub Ratings'!A99","v":""}]
[{"$f":"'CSRHub Ratings'!A100","v":""}]
[{"$f":"'CSRHub Ratings'!A101","v":""}]
[{"$f":"'CSRHub Ratings'!A102","v":""}]
[{"$f":"'CSRHub Ratings'!A103","v":""}]
[{"$f":"'CSRHub Ratings'!A104","v":""}]
[{"$f":"'CSRHub Ratings'!A105","v":""}]
[{"$f":"'CSRHub Ratings'!A106","v":""}]
[{"$f":"'CSRHub Ratings'!A107","v":""}]
[{"$f":"'CSRHub Ratings'!A108","v":""}]
[{"$f":"'CSRHub Ratings'!A109","v":""}]
[{"$f":"'CSRHub Ratings'!A110","v":""}]
[{"$f":"'CSRHub Ratings'!A111","v":""}]
[{"$f":"'CSRHub Ratings'!A112","v":""}]
[{"$f":"'CSRHub Ratings'!A113","v":""}]
[{"$f":"'CSRHub Ratings'!A114","v":""}]
[{"$f":"'CSRHub Ratings'!A115","v":""}]
[{"$f":"'CSRHub Ratings'!A116","v":""}]
[{"$f":"'CSRHub Ratings'!A117","v":""}]
[{"$f":"'CSRHub Ratings'!A118","v":""}]
[{"$f":"'CSRHub Ratings'!A119","v":""}]
[{"$f":"'CSRHub Ratings'!A120","v":""}]
[{"$f":"'CSRHub Ratings'!A121","v":""}]
[{"$f":"'CSRHub Ratings'!A122","v":""}]
[{"$f":"'CSRHub Ratings'!A123","v":""}]
[{"$f":"'CSRHub Ratings'!A124","v":""}]
[{"$f":"'CSRHub Ratings'!A125","v":""}]
[{"$f":"'CSRHub Ratings'!A126","v":""}]
[{"$f":"'CSRHub Ratings'!A127","v":""}]
[{"$f":"'CSRHub Ratings'!A128","v":""}]
[{"$f":"'CSRHub Ratings'!A129","v":""}]
[{"$f":"'CSRHub Ratings'!A130","v":""}]
[{"$f":"'CSRHub Ratings'!A131","v":""}]
[{"$f":"'CSRHub Ratings'!A132","v":""}]
[{"$f":"'CSRHub Ratings'!A133","v":""}]
[{"$f":"'CSRHub Ratings'!A134","v":""}]
[{"$f":"'CSRHub Ratings'!A135","v":""}]
[{"$f":"'CSRHub Ratings'!A136","v":""}]
[{"$f":"'CSRHub Ratings'!A137","v":""}]
[{"$f":"'CSRHub Ratings'!A138","v":""}]
[{"$f":"'CSRHub Ratings'!A139","v":""}]
[{"$f":"'CSRHub Ratings'!A140","v":""}]
[{"$f":"'CSRHub Ratings'!A141","v":""}]
[{"$f":"'CSRHub Ratings'!A142","v":""}]
[{"$f":"'CSRHub Ratings'!A143","v":""}]
[{"$f":"'CSRHub Ratings'!A144","v":""}]
[{"$f":"'CSRHub Ratings'!A145","v":""}]
[{"$f":"'CSRHub Ratings'!A146","v":""}]
[{"$f":"'CSRHub Ratings'!A147","v":""}]
[{"$f":"'CSRHub Ratings'!A148","v":""}]
[{"$f":"'CSRHub Ratings'!A149","v":""}]
[{"$f":"'CSRHub Ratings'!A150","v":""}]
[{"$f":"'CSRHub Ratings'!A151","v":""}]
[{"$f":"'CSRHub Ratings'!A152","v":""}]
[{"$f":"'CSRHub Ratings'!A153","v":""}]
[{"$f":"'CSRHub Ratings'!A154","v":""}]
[{"$f":"'CSRHub Ratings'!A155","v":""}]
[{"$f":"'CSRHub Ratings'!A156","v":""}]
[{"$f":"'CSRHub Ratings'!A157","v":""}]
[{"$f":"'CSRHub Ratings'!A158","v":""}]
[{"$f":"'CSRHub Ratings'!A159","v":""}]
[{"$f":"'CSRHub Ratings'!A160","v":""}]
[{"$f":"'CSRHub Ratings'!A161","v":""}]
[{"$f":"'CSRHub Ratings'!A162","v":""}]
[{"$f":"'CSRHub Ratings'!A163","v":""}]
[{"$f":"'CSRHub Ratings'!A164","v":""}]
[{"$f":"'CSRHub Ratings'!A165","v":""}]
[{"$f":"'CSRHub Ratings'!A166","v":""}]
[{"$f":"'CSRHub Ratings'!A167","v":""}]
[{"$f":"'CSRHub Ratings'!A168","v":""}]
[{"$f":"'CSRHub Ratings'!A169","v":""}]
[{"$f":"'CSRHub Ratings'!A170","v":""}]
[{"$f":"'CSRHub Ratings'!A171","v":""}]
[{"$f":"'CSRHub Ratings'!A172","v":""}]
[{"$f":"'CSRHub Ratings'!A173","v":""}]
[{"$f":"'CSRHub Ratings'!A174","v":""}]
[{"$f":"'CSRHub Ratings'!A175","v":""}]
[{"$f":"'CSRHub Ratings'!A176","v":""}]
[{"$f":"'CSRHub Ratings'!A177","v":""}]
[{"$f":"'CSRHub Ratings'!A178","v":""}]
[{"$f":"'CSRHub Ratings'!A179","v":""}]
[{"$f":"'CSRHub Ratings'!A180","v":""}]
[{"$f":"'CSRHub Ratings'!A181","v":""}]
[{"$f":"'CSRHub Ratings'!A182","v":""}]
[{"$f":"'CSRHub Ratings'!A183","v":""}]
[{"$f":"'CSRHub Ratings'!A184","v":""}]
[{"$f":"'CSRHub Ratings'!A185","v":""}]
[{"$f":"'CSRHub Ratings'!A186","v":""}]
[{"$f":"'CSRHub Ratings'!A187","v":""}]
[{"$f":"'CSRHub Ratings'!A188","v":""}]
[{"$f":"'CSRHub Ratings'!A189","v":""}]
[{"$f":"'CSRHub Ratings'!A190","v":""}]
[{"$f":"'CSRHub Ratings'!A191","v":""}]
[{"$f":"'CSRHub Ratings'!A192","v":""}]
[{"$f":"'CSRHub Ratings'!A193","v":""}]
[{"$f":"'CSRHub Ratings'!A194","v":""}]
[{"$f":"'CSRHub Ratings'!A195","v":""}]
[{"$f":"'CSRHub Ratings'!A196","v":""}]
[{"$f":"'CSRHub Ratings'!A197","v":""}]
[{"$f":"'CSRHub Ratings'!A198","v":""}]
[{"$f":"'CSRHub Ratings'!A199","v":""}]
[{"$f":"'CSRHub Ratings'!A200","v":""}]
[{"$f":"'CSRHub Ratings'!A201","v":""}]
[{"$f":"'CSRHub Ratings'!A202","v":""}]
[{"$f":"'CSRHub Ratings'!A203","v":""}]
[{"$f":"'CSRHub Ratings'!A204","v":""}]
[{"$f":"'CSRHub Ratings'!A205","v":""}]
[{"$f":"'CSRHub Ratings'!A206","v":""}]
[{"$f":"'CSRHub Ratings'!A207","v":""}]
[{"$f":"'CSRHub Ratings'!A208","v":""}]
[{"$f":"'CSRHub Ratings'!A209","v":""}]
[{"$f":"'CSRHub Ratings'!A210","v":""}]
[{"$f":"'CSRHub Ratings'!A211","v":""}]
[{"$f":"'CSRHub Ratings'!A212","v":""}]
[{"$f":"'CSRHub Ratings'!A213","v":""}]
[{"$f":"'CSRHub Ratings'!A214","v":""}]
[{"$f":"'CSRHub Ratings'!A215","v":""}]
[{"$f":"'CSRHub Ratings'!A216","v":""}]
[{"$f":"'CSRHub Ratings'!A217","v":""}]
[{"$f":"'CSRHub Ratings'!A218","v":""}]
[{"$f":"'CSRHub Ratings'!A219","v":""}]
[{"$f":"'CSRHub Ratings'!A220","v":""}]
[{"$f":"'CSRHub Ratings'!A221","v":""}]
[{"$f":"'CSRHub Ratings'!A222","v":""}]
[{"$f":"'CSRHub Ratings'!A223","v":""}]
[{"$f":"'CSRHub Ratings'!A224","v":""}]
[{"$f":"'CSRHub Ratings'!A225","v":""}]
[{"$f":"'CSRHub Ratings'!A226","v":""}]
[{"$f":"'CSRHub Ratings'!A227","v":""}]
[{"$f":"'CSRHub Ratings'!A228","v":""}]
[{"$f":"'CSRHub Ratings'!A229","v":""}]
[{"$f":"'CSRHub Ratings'!A230","v":""}]
[{"$f":"'CSRHub Ratings'!A231","v":""}]
[{"$f":"'CSRHub Ratings'!A232","v":""}]
[{"$f":"'CSRHub Ratings'!A233","v":""}]
[{"$f":"'CSRHub Ratings'!A234","v":""}]
[{"$f":"'CSRHub Ratings'!A235","v":""}]
[{"$f":"'CSRHub Ratings'!A236","v":""}]
[{"$f":"'CSRHub Ratings'!A237","v":""}]
[{"$f":"'CSRHub Ratings'!A238","v":""}]
[{"$f":"'CSRHub Ratings'!A239","v":""}]
[{"$f":"'CSRHub Ratings'!A240","v":""}]
[{"$f":"'CSRHub Ratings'!A241","v":""}]
[{"$f":"'CSRHub Ratings'!A242","v":""}]
[{"$f":"'CSRHub Ratings'!A243","v":""}]
[{"$f":"'CSRHub Ratings'!A244","v":""}]
[{"$f":"'CSRHub Ratings'!A245","v":""}]
[{"$f":"'CSRHub Ratings'!A246","v":""}]
[{"$f":"'CSRHub Ratings'!A247","v":""}]
[{"$f":"'CSRHub Ratings'!A248","v":""}]
[{"$f":"'CSRHub Ratings'!A249","v":""}]
[{"$f":"'CSRHub Ratings'!A250","v":""}]
[{"$f":"'CSRHub Ratings'!A251","v":""}]
[{"$f":"'CSRHub Ratings'!A252","v":""}]
[{"$f":"'CSRHub Ratings'!A253","v":""}]
[{"$f":"'CSRHub Ratings'!A254","v":""}]
[{"$f":"'CSRHub Ratings'!A255","v":""}]
[{"$f":"'CSRHub Ratings'!A256","v":""}]
[{"$f":"'CSRHub Ratings'!A257","v":""}]
[{"$f":"'CSRHub Ratings'!A258","v":""}]
[{"$f":"'CSRHub Ratings'!A259","v":""}]
[{"$f":"'CSRHub Ratings'!A260","v":""}]
[{"$f":"'CSRHub Ratings'!A261","v":""}]
[{"$f":"'CSRHub Ratings'!A262","v":""}]
[{"$f":"'CSRHub Ratings'!A263","v":""}]
[{"$f":"'CSRHub Ratings'!A264","v":""}]
[{"$f":"'CSRHub Ratings'!A265","v":""}]
[{"$f":"'CSRHub Ratings'!A266","v":""}]
[{"$f":"'CSRHub Ratings'!A267","v":""}]
[{"$f":"'CSRHub Ratings'!A268","v":""}]
[{"$f":"'CSRHub Ratings'!A269","v":""}]
[{"$f":"'CSRHub Ratings'!A270","v":""}]
[{"$f":"'CSRHub Ratings'!A271","v":""}]
[{"$f":"'CSRHub Ratings'!A272","v":""}]
[{"$f":"'CSRHub Ratings'!A273","v":""}]
[{"$f":"'CSRHub Ratings'!A274","v":""}]
[{"$f":"'CSRHub Ratings'!A275","v":""}]
[{"$f":"'CSRHub Ratings'!A276","v":""}]
[{"$f":"'CSRHub Ratings'!A277","v":""}]
[{"$f":"'CSRHub Ratings'!A278","v":""}]
[{"$f":"'CSRHub Ratings'!A279","v":""}]
[{"$f":"'CSRHub Ratings'!A280","v":""}]
[{"$f":"'CSRHub Ratings'!A281","v":""}]
[{"$f":"'CSRHub Ratings'!A282","v":""}]
[{"$f":"'CSRHub Ratings'!A283","v":""}]
[{"$f":"'CSRHub Ratings'!A284","v":""}]
[{"$f":"'CSRHub Ratings'!A285","v":""}]
[{"$f":"'CSRHub Ratings'!A286","v":""}]
[{"$f":"'CSRHub Ratings'!A287","v":""}]
[{"$f":"'CSRHub Ratings'!A288","v":""}]
[{"$f":"'CSRHub Ratings'!A289","v":""}]
[{"$f":"'CSRHub Ratings'!A290","v":""}]
[{"$f":"'CSRHub Ratings'!A291","v":""}]
[{"$f":"'CSRHub Ratings'!A292","v":""}]
[{"$f":"'CSRHub Ratings'!A293","v":""}]
[{"$f":"'CSRHub Ratings'!A294","v":""}]
[{"$f":"'CSRHub Ratings'!A295","v":""}]
[{"$f":"'CSRHub Ratings'!A296","v":""}]
[{"$f":"'CSRHub Ratings'!A297","v":""}]
[{"$f":"'CSRHub Ratings'!A298","v":""}]
[{"$f":"'CSRHub Ratings'!A299","v":""}]
[{"$f":"'CSRHub Ratings'!A300","v":""}]
[{"$f":"'CSRHub Ratings'!A301","v":""}]
[{"$f":"'CSRHub Ratings'!A302","v":""}]
[{"$f":"'CSRHub Ratings'!A303","v":""}]
[{"$f":"'CSRHub Ratings'!A304","v":""}]
[{"$f":"'CSRHub Ratings'!A305","v":""}]
[{"$f":"'CSRHub Ratings'!A306","v":""}]
[{"$f":"'CSRHub Ratings'!A307","v":""}]
[{"$f":"'CSRHub Ratings'!A308","v":""}]
[{"$f":"'CSRHub Ratings'!A309","v":""}]
[{"$f":"'CSRHub Ratings'!A310","v":""}]
[{"$f":"'CSRHub Ratings'!A311","v":""}]
[{"$f":"'CSRHub Ratings'!A312","v":""}]
[{"$f":"'CSRHub Ratings'!A313","v":""}]
[{"$f":"'CSRHub Ratings'!A314","v":""}]
[{"$f":"'CSRHub Ratings'!A315","v":""}]
[{"$f":"'CSRHub Ratings'!A316","v":""}]
[{"$f":"'CSRHub Ratings'!A317","v":""}]
[{"$f":"'CSRHub Ratings'!A318","v":""}]
[{"$f":"'CSRHub Ratings'!A319","v":""}]
[{"$f":"'CSRHub Ratings'!A320","v":""}]
[{"$f":"'CSRHub Ratings'!A321","v":""}]
[{"$f":"'CSRHub Ratings'!A322","v":""}]
[{"$f":"'CSRHub Ratings'!A323","v":""}]
[{"$f":"'CSRHub Ratings'!A324","v":""}]
[{"$f":"'CSRHub Ratings'!A325","v":""}]
[{"$f":"'CSRHub Ratings'!A326","v":""}]
[{"$f":"'CSRHub Ratings'!A327","v":""}]
[{"$f":"'CSRHub Ratings'!A328","v":""}]
[{"$f":"'CSRHub Ratings'!A329","v":""}]
[{"$f":"'CSRHub Ratings'!A330","v":""}]
[{"$f":"'CSRHub Ratings'!A331","v":""}]
[{"$f":"'CSRHub Ratings'!A332","v":""}]
[{"$f":"'CSRHub Ratings'!A333","v":""}]
[{"$f":"'CSRHub Ratings'!A334","v":""}]
[{"$f":"'CSRHub Ratings'!A335","v":""}]
[{"$f":"'CSRHub Ratings'!A336","v":""}]
[{"$f":"'CSRHub Ratings'!A337","v":""}]
[{"$f":"'CSRHub Ratings'!A338","v":""}]
[{"$f":"'CSRHub Ratings'!A339","v":""}]
[{"$f":"'CSRHub Ratings'!A340","v":""}]
[{"$f":"'CSRHub Ratings'!A341","v":""}]
[{"$f":"'CSRHub Ratings'!A342","v":""}]
[{"$f":"'CSRHub Ratings'!A343","v":""}]
[{"$f":"'CSRHub Ratings'!A344","v":""}]
[{"$f":"'CSRHub Ratings'!A345","v":""}]
[{"$f":"'CSRHub Ratings'!A346","v":""}]
[{"$f":"'CSRHub Ratings'!A347","v":""}]
[{"$f":"'CSRHub Ratings'!A348","v":""}]
[{"$f":"'CSRHub Ratings'!A349","v":""}]
[{"$f":"'CSRHub Ratings'!A350","v":""}]
[{"$f":"'CSRHub Ratings'!A351","v":""}]
[{"$f":"'CSRHub Ratings'!A352","v":""}]
[{"$f":"'CSRHub Ratings'!A353","v":""}]
[{"$f":"'CSRHub Ratings'!A354","v":""}]
[{"$f":"'CSRHub Ratings'!A355","v":""}]
[{"$f":"'CSRHub Ratings'!A356","v":""}]
[{"$f":"'CSRHub Ratings'!A357","v":""}]
[{"$f":"'CSRHub Ratings'!A358","v":""}]
[{"$f":"'CSRHub Ratings'!A359","v":""}]
[{"$f":"'CSRHub Ratings'!A360","v":""}]
[{"$f":"'CSRHub Ratings'!A361","v":""}]
[{"$f":"'CSRHub Ratings'!A362","v":""}]
[{"$f":"'CSRHub Ratings'!A363","v":""}]
[{"$f":"'CSRHub Ratings'!A364","v":""}]
[{"$f":"'CSRHub Ratings'!A365","v":""}]
[{"$f":"'CSRHub Ratings'!A366","v":""}]
[{"$f":"'CSRHub Ratings'!A367","v":""}]
[{"$f":"'CSRHub Ratings'!A368","v":""}]
[{"$f":"'CSRHub Ratings'!A369","v":""}]
[{"$f":"'CSRHub Ratings'!A370","v":""}]
[{"$f":"'CSRHub Ratings'!A371","v":""}]
[{"$f":"'CSRHub Ratings'!A372","v":""}]
[{"$f":"'CSRHub Ratings'!A373","v":""}]
[{"$f":"'CSRHub Ratings'!A374","v":""}]
[{"$f":"'CSRHub Ratings'!A375","v":""}]
[{"$f":"'CSRHub Ratings'!A376","v":""}]
[{"$f":"'CSRHub Ratings'!A377","v":""}]
[{"$f":"'CSRHub Ratings'!A378","v":""}]
[{"$f":"'CSRHub Ratings'!A379","v":""}]
[{"$f":"'CSRHub Ratings'!A380","v":""}]
[{"$f":"'CSRHub Ratings'!A381","v":""}]
[{"$f":"'CSRHub Ratings'!A382","v":""}]
[{"$f":"'CSRHub Ratings'!A383","v":""}]
[{"$f":"'CSRHub Ratings'!A384","v":""}]
[{"$f":"'CSRHub Ratings'!A385","v":""}]
[{"$f":"'CSRHub Ratings'!A386","v":""}]
[{"$f":"'CSRHub Ratings'!A387","v":""}]
[{"$f":"'CSRHub Ratings'!A388","v":""}]
[{"$f":"'CSRHub Ratings'!A389","v":""}]
[{"$f":"'CSRHub Ratings'!A390","v":""}]
[{"$f":"'CSRHub Ratings'!A391","v":""}]
[{"$f":"'CSRHub Ratings'!A392","v":""}]
[{"$f":"'CSRHub Ratings'!A393","v":""}]
[{"$f":"'CSRHub Ratings'!A394","v":""}]
[{"$f":"'CSRHub Ratings'!A395","v":""}]
[{"$f":"'CSRHub Ratings'!A396","v":""}]
[{"$f":"'CSRHub Ratings'!A397","v":""}]
[{"$f":"'CSRHub Ratings'!A398","v":""}]
[{"$f":"'CSRHub Ratings'!A399","v":""}]
[{"$f":"'CSRHub Ratings'!A400","v":""}]
[{"$f":"'CSRHub Ratings'!A401","v":""}]
[{"$f":"'CSRHub Ratings'!A402","v":""}]
[{"$f":"'CSRHub Ratings'!A403","v":""}]
[{"$f":"'CSRHub Ratings'!A404","v":""}]
[{"$f":"'CSRHub Ratings'!A405","v":""}]
[{"$f":"'CSRHub Ratings'!A406","v":""}]
[{"$f":"'CSRHub Ratings'!A407","v":""}]
[{"$f":"'CSRHub Ratings'!A408","v":""}]
[{"$f":"'CSRHub Ratings'!A409","v":""}]
[{"$f":"'CSRHub Ratings'!A410","v":""}]
[{"$f":"'CSRHub Ratings'!A411","v":""}]
[{"$f":"'CSRHub Ratings'!A412","v":""}]
[{"$f":"'CSRHub Ratings'!A413","v":""}]
[{"$f":"'CSRHub Ratings'!A414","v":""}]
[{"$f":"'CSRHub Ratings'!A415","v":""}]
[{"$f":"'CSRHub Ratings'!A416","v":""}]
[{"$f":"'CSRHub Ratings'!A417","v":""}]
[{"$f":"'CSRHub Ratings'!A418","v":""}]
[{"$f":"'CSRHub Ratings'!A419","v":""}]
[{"$f":"'CSRHub Ratings'!A420","v":""}]
[{"$f":"'CSRHub Ratings'!A421","v":""}]
[{"$f":"'CSRHub Ratings'!A422","v":""}]
[{"$f":"'CSRHub Ratings'!A423","v":""}]
[{"$f":"'CSRHub Ratings'!A424","v":""}]
[{"$f":"'CSRHub Ratings'!A425","v":""}]
[{"$f":"'CSRHub Ratings'!A426","v":""}]
[{"$f":"'CSRHub Ratings'!A427","v":""}]
[{"$f":"'CSRHub Ratings'!A428","v":""}]
[{"$f":"'CSRHub Ratings'!A429","v":""}]
[{"$f":"'CSRHub Ratings'!A430","v":""}]

{"sheet":"SASB Mapping","index":4,"n_rows":19,"n_cols":14,"rows_kept":19,"cut":false,"hidden":false,"merged":[[7,1,9,1]]}
[]
[]
[]
[]
[]
[]
[null,"CSRHub SASB - Auto Industry Mapping"]
[null,"Below is a mapping of CSRHub data to SASB-Auto Industry. The model was developed by our partner Valutus, under the title \"Materiality Matters.\" You can learn more about Valutus at valutus.com."]
[]
[]
[null,"Reach out to CSRHub to request a custom mapping."]
[]
[]
[null,"SASB Area Mapping for Auto Industry to CSRHub Scores","Community Dev & Philanthropy","Human Rights & Supply Chain","Product","Compensation & Benefits","Diversity & Labor Rights","Training, Health & Safety","Energy & Climate Change","Environment Policy & Reporting","Resource Management","Board","Leadership Ethics","Transparency & Reporting"]
[null,"Materials Efficiency and Recycling",null,null,0.2,"","","","",0.1,0.6,"",0.05,0.05]
[null,"Product Safety",null,null,0.75,null,null,0.15,null,null,0.05,null,null,0.05]
[null,"Labor Relations",null,null,null,0.31,0.31,0.31,null,null,null,null,0.04,0.03]
[null,"Fuel Economy and Use-phase Emissions",0.05,null,0.15,null,null,null,0.35,0.35,null,null,null,0.1]
[null,"Materials Sourcing (including critical materials)",null,0.65,null,null,null,null,null,0.1,null,0.05,0.1,0.1]